Workbook

Sheet Labor & Overhead Input
B1: Labor & Overhead | I1: "Do-It-Yourself" Estimation Worksheet
I2: a free estimation template for MS Excel from Thomas Insulation Corporation
B3: Insulator Labor (per Hour)
B4: Base Labor Rate | C4: Additional Benefits | D4: Other Benefits | E4: Corporate Tax | F4: Insurance | G4: Overhead | H4: Total Labor Rate
B5: $15.00 | C5: $5.00 | D5: $2.00 | E5: =$B$5*B13 -> $1.80 | F5: =$B$5*C13 -> $1.95 | G5: =$B$5*I9 -> $3.42 | H5: =SUM(B5:G5) -> $29.17
B7: Overhead (per Month)
B8: Annual Sales | C8: Non Labor Expenses | D8: Clerical Salaries | E8: Officer Salaries | F8: Corporate Tax | G8: Insurance | H8: Overhead | I8: Overhead Percent
B9: $500,000 | C9: $2,000 | D9: $1,200 | E9: $4,800 | F9: =SUM(D9:E9)*B13 -> $720 | G9: =SUM(D9:E9)*C13 -> $780 | H9: =SUM(C9:G9) -> $9,500 | I9: =IF(AND(H9>0, B9>0),PRODUCT((H9*12)/B9),0) -> 22.80%
B11: Financial Rates
B12: Corporate Tax Rate | C12: Insurance Rate
B13: 12.00% | C13: 13.00%
B15: Optimized for Screen Resolution 2560 x 1440
B16: Free Estimation Template for Excel
B17: Copyright 2000-2011 Thomas Insulation Corporation
B18: All Rights Reserved

Sheet Estimation Input
B1: Estimate | X1: "Do-It-Yourself" Estimation Worksheet
X2: a free estimation template for MS Excel from Thomas Insulation Corporation
B3: Pipe Covering | K3: Fitting Covers
B4: ID | C4: Qty | D4: Unit Price | E4: Product | F4: Unit Subtotal | G4: Unit Labor | H4: Total Labor | I4: Total Price | K4: ID | L4: Qty | M4: Unit Price | N4: Product | O4: Unit Subtotal | P4: Unit Labor | Q4: Total Labor | R4: Total Price
B5: 100 | C5: 50 | D5: =IF(ISBLANK(B5),0,VLOOKUP(B5,'Materials Catalog Input'!$B$5:$I$904,4,FALSE)) -> $1.28 | E5: =IF(ISBLANK(B5),0,VLOOKUP(B5,'Materials Catalog Input'!$B$5:$I$904,2,FALSE)) -> 1/2 x 1/2 | F5: =C5*D5 -> $64.20 | G5: =IF(ISBLANK(B5),0,VLOOKUP(B5,'Materials Catalog Input'!$B$5:$I$904,6,FALSE)) -> $1.17 | H5: =G5*C5 -> $58.34 | I5: =SUM(F5,H5) -> $122.54 | K5: 600 | L5: 35 | M5: =IF(ISBLANK(K5),0,VLOOKUP(K5,'Materials Catalog Input'!$B$5:$I$904,4,FALSE)) -> $0.63 | N5: =IF(ISBLANK(K5),0,VLOOKUP(K5,'Materials Catalog Input'!$B$5:$I$904,2,FALSE)) -> Nr 2 45s PVC | O5: =L5*M5 -> $22.18 | P5: =IF(ISBLANK(K5),0,VLOOKUP(K5,'Materials Catalog Input'!$B$5:$I$904,6,FALSE)) -> $3.65 | Q5: =P5*L5 -> $127.62 | R5: =SUM(O5,Q5) -> $149.79
B6: 101 | C6: 22 | D6: =IF(ISBLANK(B6),0,VLOOKUP(B6,'Materials Catalog Input'!$B$5:$I$904,4,FALSE)) -> $1.32 | E6: =IF(ISBLANK(B6),0,VLOOKUP(B6,'Materials Catalog Input'!$B$5:$I$904,2,FALSE)) -> 1/2 x 1 | F6: $29.15 | G6: =IF(ISBLANK(B6),0,VLOOKUP(B6,'Materials Catalog Input'!$B$5:$I$904,6,FALSE)) -> $0.83 | H6: =G6*C6 -> $18.34 | I6: =SUM(F6,H6) -> $47.48 | M6: =IF(ISBLANK(K6),0,VLOOKUP(K6,'Materials Catalog Input'!$B$5:$I$904,4,FALSE)) -> $0.00 | N6: =IF(ISBLANK(K6),0,VLOOKUP(K6,'Materials Catalog Input'!$B$5:$I$904,2,FALSE)) -> 0 | O6: $0.00 | P6: =IF(ISBLANK(K6),0,VLOOKUP(K6,'Materials Catalog Input'!$B$5:$I$904,6,FALSE)) -> $0.00 | Q6: =P6*L6 -> $0.00 | R6: =SUM(O6,Q6) -> $0.00
D7: =IF(ISBLANK(B7),0,VLOOKUP(B7,'Materials Catalog Input'!$B$5:$I$904,4,FALSE)) -> $0.00 | E7: =IF(ISBLANK(B7),0,VLOOKUP(B7,'Materials Catalog Input'!$B$5:$I$904,2,FALSE)) -> 0 | F7: $0.00 | G7: =IF(ISBLANK(B7),0,VLOOKUP(B7,'Materials Catalog Input'!$B$5:$I$904,6,FALSE)) -> $0.00 | H7: $0.00 | I7: $0.00 | M7: =IF(ISBLANK(K7),0,VLOOKUP(K7,'Materials Catalog Input'!$B$5:$I$904,4,FALSE)) -> $0.00 | N7: =IF(ISBLANK(K7),0,VLOOKUP(K7,'Materials Catalog Input'!$B$5:$I$904,2,FALSE)) -> 0 | O7: $0.00 | P7: =IF(ISBLANK(K7),0,VLOOKUP(K7,'Materials Catalog Input'!$B$5:$I$904,6,FALSE)) -> $0.00 | Q7: $0.00 | R7: $0.00
D8: =IF(ISBLANK(B8),0,VLOOKUP(B8,'Materials Catalog Input'!$B$5:$I$904,4,FALSE)) -> $0.00 | E8: =IF(ISBLANK(B8),0,VLOOKUP(B8,'Materials Catalog Input'!$B$5:$I$904,2,FALSE)) -> 0 | F8: $0.00 | G8: =IF(ISBLANK(B8),0,VLOOKUP(B8,'Materials Catalog Input'!$B$5:$I$904,6,FALSE)) -> $0.00 | H8: $0.00 | I8: $0.00 | M8: =IF(ISBLANK(K8),0,VLOOKUP(K8,'Materials Catalog Input'!$B$5:$I$904,4,FALSE)) -> $0.00 | N8: =IF(ISBLANK(K8),0,VLOOKUP(K8,'Materials Catalog Input'!$B$5:$I$904,2,FALSE)) -> 0 | O8: $0.00 | P8: =IF(ISBLANK(K8),0,VLOOKUP(K8,'Materials Catalog Input'!$B$5:$I$904,6,FALSE)) -> $0.00 | Q8: $0.00 | R8: $0.00
D9: =IF(ISBLANK(B9),0,VLOOKUP(B9,'Materials Catalog Input'!$B$5:$I$904,4,FALSE)) -> $0.00 | E9: =IF(ISBLANK(B9),0,VLOOKUP(B9,'Materials Catalog Input'!$B$5:$I$904,2,FALSE)) -> 0 | F9: $0.00 | G9: =IF(ISBLANK(B9),0,VLOOKUP(B9,'Materials Catalog Input'!$B$5:$I$904,6,FALSE)) -> $0.00 | H9: $0.00 | I9: $0.00 | M9: =IF(ISBLANK(K9),0,VLOOKUP(K9,'Materials Catalog Input'!$B$5:$I$904,4,FALSE)) -> $0.00 | N9: =IF(ISBLANK(K9),0,VLOOKUP(K9,'Materials Catalog Input'!$B$5:$I$904,2,FALSE)) -> 0 | O9: $0.00 | P9: =IF(ISBLANK(K9),0,VLOOKUP(K9,'Materials Catalog Input'!$B$5:$I$904,6,FALSE)) -> $0.00 | Q9: $0.00 | R9: $0.00
D10: =IF(ISBLANK(B10),0,VLOOKUP(B10,'Materials Catalog Input'!$B$5:$I$904,4,FALSE)) -> $0.00 | E10: =IF(ISBLANK(B10),0,VLOOKUP(B10,'Materials Catalog Input'!$B$5:$I$904,2,FALSE)) -> 0 | F10: $0.00 | G10: =IF(ISBLANK(B10),0,VLOOKUP(B10,'Materials Catalog Input'!$B$5:$I$904,6,FALSE)) -> $0.00 | H10: $0.00 | I10: $0.00 | M10: =IF(ISBLANK(K10),0,VLOOKUP(K10,'Materials Catalog Input'!$B$5:$I$904,4,FALSE)) -> $0.00 | N10: =IF(ISBLANK(K10),0,VLOOKUP(K10,'Materials Catalog Input'!$B$5:$I$904,2,FALSE)) -> 0 | O10: $0.00 | P10: =IF(ISBLANK(K10),0,VLOOKUP(K10,'Materials Catalog Input'!$B$5:$I$904,6,FALSE)) -> $0.00 | Q10: $0.00 | R10: $0.00
D11: =IF(ISBLANK(B11),0,VLOOKUP(B11,'Materials Catalog Input'!$B$5:$I$904,4,FALSE)) -> $0.00 | E11: =IF(ISBLANK(B11),0,VLOOKUP(B11,'Materials Catalog Input'!$B$5:$I$904,2,FALSE)) -> 0 | F11: $0.00 | G11: =IF(ISBLANK(B11),0,VLOOKUP(B11,'Materials Catalog Input'!$B$5:$I$904,6,FALSE)) -> $0.00 | H11: $0.00 | I11: $0.00 | M11: =IF(ISBLANK(K11),0,VLOOKUP(K11,'Materials Catalog Input'!$B$5:$I$904,4,FALSE)) -> $0.00 | N11: =IF(ISBLANK(K11),0,VLOOKUP(K11,'Materials Catalog Input'!$B$5:$I$904,2,FALSE)) -> 0 | O11: $0.00 | P11: =IF(ISBLANK(K11),0,VLOOKUP(K11,'Materials Catalog Input'!$B$5:$I$904,6,FALSE)) -> $0.00 | Q11: $0.00 | R11: $0.00
D12: =IF(ISBLANK(B12),0,VLOOKUP(B12,'Materials Catalog Input'!$B$5:$I$904,4,FALSE)) -> $0.00 | E12: =IF(ISBLANK(B12),0,VLOOKUP(B12,'Materials Catalog Input'!$B$5:$I$904,2,FALSE)) -> 0 | F12: $0.00 | G12: =IF(ISBLANK(B12),0,VLOOKUP(B12,'Materials Catalog Input'!$B$5:$I$904,6,FALSE)) -> $0.00 | H12: $0.00 | I12: $0.00 | M12: =IF(ISBLANK(K12),0,VLOOKUP(K12,'Materials Catalog Input'!$B$5:$I$904,4,FALSE)) -> $0.00 | N12: =IF(ISBLANK(K12),0,VLOOKUP(K12,'Materials Catalog Input'!$B$5:$I$904,2,FALSE)) -> 0 | O12: $0.00 | P12: =IF(ISBLANK(K12),0,VLOOKUP(K12,'Materials Catalog Input'!$B$5:$I$904,6,FALSE)) -> $0.00 | Q12: $0.00 | R12: $0.00
D13: =IF(ISBLANK(B13),0,VLOOKUP(B13,'Materials Catalog Input'!$B$5:$I$904,4,FALSE)) -> $0.00 | E13: =IF(ISBLANK(B13),0,VLOOKUP(B13,'Materials Catalog Input'!$B$5:$I$904,2,FALSE)) -> 0 | F13: =C13*D13 -> $0.00 | G13: =IF(ISBLANK(B13),0,VLOOKUP(B13,'Materials Catalog Input'!$B$5:$I$904,6,FALSE)) -> $0.00 | H13: =G13*C13 -> $0.00 | I13: =SUM(F13,H13) -> $0.00 | M13: =IF(ISBLANK(K13),0,VLOOKUP(K13,'Materials Catalog Input'!$B$5:$I$904,4,FALSE)) -> $0.00 | N13: =IF(ISBLANK(K13),0,VLOOKUP(K13,'Materials Catalog Input'!$B$5:$I$904,2,FALSE)) -> 0 | O13: =L13*M13 -> $0.00 | P13: =IF(ISBLANK(K13),0,VLOOKUP(K13,'Materials Catalog Input'!$B$5:$I$904,6,FALSE)) -> $0.00 | Q13: =P13*L13 -> $0.00 | R13: =SUM(O13,Q13) -> $0.00
D14: =IF(ISBLANK(B14),0,VLOOKUP(B14,'Materials Catalog Input'!$B$5:$I$904,4,FALSE)) -> $0.00 | E14: =IF(ISBLANK(B14),0,VLOOKUP(B14,'Materials Catalog Input'!$B$5:$I$904,2,FALSE)) -> 0 | F14: $0.00 | G14: =IF(ISBLANK(B14),0,VLOOKUP(B14,'Materials Catalog Input'!$B$5:$I$904,6,FALSE)) -> $0.00 | H14: $0.00 | I14: $0.00 | M14: =IF(ISBLANK(K14),0,VLOOKUP(K14,'Materials Catalog Input'!$B$5:$I$904,4,FALSE)) -> $0.00 | N14: =IF(ISBLANK(K14),0,VLOOKUP(K14,'Materials Catalog Input'!$B$5:$I$904,2,FALSE)) -> 0 | O14: $0.00 | P14: =IF(ISBLANK(K14),0,VLOOKUP(K14,'Materials Catalog Input'!$B$5:$I$904,6,FALSE)) -> $0.00 | Q14: $0.00 | R14: $0.00
D15: =IF(ISBLANK(B15),0,VLOOKUP(B15,'Materials Catalog Input'!$B$5:$I$904,4,FALSE)) -> $0.00 | E15: =IF(ISBLANK(B15),0,VLOOKUP(B15,'Materials Catalog Input'!$B$5:$I$904,2,FALSE)) -> 0 | F15: $0.00 | G15: =IF(ISBLANK(B15),0,VLOOKUP(B15,'Materials Catalog Input'!$B$5:$I$904,6,FALSE)) -> $0.00 | H15: $0.00 | I15: $0.00 | M15: =IF(ISBLANK(K15),0,VLOOKUP(K15,'Materials Catalog Input'!$B$5:$I$904,4,FALSE)) -> $0.00 | N15: =IF(ISBLANK(K15),0,VLOOKUP(K15,'Materials Catalog Input'!$B$5:$I$904,2,FALSE)) -> 0 | O15: $0.00 | P15: =IF(ISBLANK(K15),0,VLOOKUP(K15,'Materials Catalog Input'!$B$5:$I$904,6,FALSE)) -> $0.00 | Q15: $0.00 | R15: $0.00
D16: =IF(ISBLANK(B16),0,VLOOKUP(B16,'Materials Catalog Input'!$B$5:$I$904,4,FALSE)) -> $0.00 | E16: =IF(ISBLANK(B16),0,VLOOKUP(B16,'Materials Catalog Input'!$B$5:$I$904,2,FALSE)) -> 0 | F16: $0.00 | G16: =IF(ISBLANK(B16),0,VLOOKUP(B16,'Materials Catalog Input'!$B$5:$I$904,6,FALSE)) -> $0.00 | H16: $0.00 | I16: $0.00 | M16: =IF(ISBLANK(K16),0,VLOOKUP(K16,'Materials Catalog Input'!$B$5:$I$904,4,FALSE)) -> $0.00 | N16: =IF(ISBLANK(K16),0,VLOOKUP(K16,'Materials Catalog Input'!$B$5:$I$904,2,FALSE)) -> 0 | O16: $0.00 | P16: =IF(ISBLANK(K16),0,VLOOKUP(K16,'Materials Catalog Input'!$B$5:$I$904,6,FALSE)) -> $0.00 | Q16: $0.00 | R16: $0.00
D17: =IF(ISBLANK(B17),0,VLOOKUP(B17,'Materials Catalog Input'!$B$5:$I$904,4,FALSE)) -> $0.00 | E17: =IF(ISBLANK(B17),0,VLOOKUP(B17,'Materials Catalog Input'!$B$5:$I$904,2,FALSE)) -> 0 | F17: $0.00 | G17: =IF(ISBLANK(B17),0,VLOOKUP(B17,'Materials Catalog Input'!$B$5:$I$904,6,FALSE)) -> $0.00 | H17: $0.00 | I17: $0.00 | M17: =IF(ISBLANK(K17),0,VLOOKUP(K17,'Materials Catalog Input'!$B$5:$I$904,4,FALSE)) -> $0.00 | N17: =IF(ISBLANK(K17),0,VLOOKUP(K17,'Materials Catalog Input'!$B$5:$I$904,2,FALSE)) -> 0 | O17: $0.00 | P17: =IF(ISBLANK(K17),0,VLOOKUP(K17,'Materials Catalog Input'!$B$5:$I$904,6,FALSE)) -> $0.00 | Q17: $0.00 | R17: $0.00
D18: =IF(ISBLANK(B18),0,VLOOKUP(B18,'Materials Catalog Input'!$B$5:$I$904,4,FALSE)) -> $0.00 | E18: =IF(ISBLANK(B18),0,VLOOKUP(B18,'Materials Catalog Input'!$B$5:$I$904,2,FALSE)) -> 0 | F18: $0.00 | G18: =IF(ISBLANK(B18),0,VLOOKUP(B18,'Materials Catalog Input'!$B$5:$I$904,6,FALSE)) -> $0.00 | H18: $0.00 | I18: $0.00 | M18: =IF(ISBLANK(K18),0,VLOOKUP(K18,'Materials Catalog Input'!$B$5:$I$904,4,FALSE)) -> $0.00 | N18: =IF(ISBLANK(K18),0,VLOOKUP(K18,'Materials Catalog Input'!$B$5:$I$904,2,FALSE)) -> 0 | O18: $0.00 | P18: =IF(ISBLANK(K18),0,VLOOKUP(K18,'Materials Catalog Input'!$B$5:$I$904,6,FALSE)) -> $0.00 | Q18: $0.00 | R18: $0.00
D19: =IF(ISBLANK(B19),0,VLOOKUP(B19,'Materials Catalog Input'!$B$5:$I$904,4,FALSE)) -> $0.00 | E19: =IF(ISBLANK(B19),0,VLOOKUP(B19,'Materials Catalog Input'!$B$5:$I$904,2,FALSE)) -> 0 | F19: $0.00 | G19: =IF(ISBLANK(B19),0,VLOOKUP(B19,'Materials Catalog Input'!$B$5:$I$904,6,FALSE)) -> $0.00 | H19: $0.00 | I19: $0.00 | M19: =IF(ISBLANK(K19),0,VLOOKUP(K19,'Materials Catalog Input'!$B$5:$I$904,4,FALSE)) -> $0.00 | N19: =IF(ISBLANK(K19),0,VLOOKUP(K19,'Materials Catalog Input'!$B$5:$I$904,2,FALSE)) -> 0 | O19: $0.00 | P19: =IF(ISBLANK(K19),0,VLOOKUP(K19,'Materials Catalog Input'!$B$5:$I$904,6,FALSE)) -> $0.00 | Q19: $0.00 | R19: $0.00
D20: =IF(ISBLANK(B20),0,VLOOKUP(B20,'Materials Catalog Input'!$B$5:$I$904,4,FALSE)) -> $0.00 | E20: =IF(ISBLANK(B20),0,VLOOKUP(B20,'Materials Catalog Input'!$B$5:$I$904,2,FALSE)) -> 0 | F20: $0.00 | G20: =IF(ISBLANK(B20),0,VLOOKUP(B20,'Materials Catalog Input'!$B$5:$I$904,6,FALSE)) -> $0.00 | H20: $0.00 | I20: $0.00 | M20: =IF(ISBLANK(K20),0,VLOOKUP(K20,'Materials Catalog Input'!$B$5:$I$904,4,FALSE)) -> $0.00 | N20: =IF(ISBLANK(K20),0,VLOOKUP(K20,'Materials Catalog Input'!$B$5:$I$904,2,FALSE)) -> 0 | O20: $0.00 | P20: =IF(ISBLANK(K20),0,VLOOKUP(K20,'Materials Catalog Input'!$B$5:$I$904,6,FALSE)) -> $0.00 | Q20: $0.00 | R20: $0.00
D21: =IF(ISBLANK(B21),0,VLOOKUP(B21,'Materials Catalog Input'!$B$5:$I$904,4,FALSE)) -> $0.00 | E21: =IF(ISBLANK(B21),0,VLOOKUP(B21,'Materials Catalog Input'!$B$5:$I$904,2,FALSE)) -> 0 | F21: $0.00 | G21: =IF(ISBLANK(B21),0,VLOOKUP(B21,'Materials Catalog Input'!$B$5:$I$904,6,FALSE)) -> $0.00 | H21: $0.00 | I21: $0.00 | M21: =IF(ISBLANK(K21),0,VLOOKUP(K21,'Materials Catalog Input'!$B$5:$I$904,4,FALSE)) -> $0.00 | N21: =IF(ISBLANK(K21),0,VLOOKUP(K21,'Materials Catalog Input'!$B$5:$I$904,2,FALSE)) -> 0 | O21: $0.00 | P21: =IF(ISBLANK(K21),0,VLOOKUP(K21,'Materials Catalog Input'!$B$5:$I$904,6,FALSE)) -> $0.00 | Q21: $0.00 | R21: $0.00
D22: =IF(ISBLANK(B22),0,VLOOKUP(B22,'Materials Catalog Input'!$B$5:$I$904,4,FALSE)) -> $0.00 | E22: =IF(ISBLANK(B22),0,VLOOKUP(B22,'Materials Catalog Input'!$B$5:$I$904,2,FALSE)) -> 0 | F22: $0.00 | G22: =IF(ISBLANK(B22),0,VLOOKUP(B22,'Materials Catalog Input'!$B$5:$I$904,6,FALSE)) -> $0.00 | H22: $0.00 | I22: $0.00 | M22: =IF(ISBLANK(K22),0,VLOOKUP(K22,'Materials Catalog Input'!$B$5:$I$904,4,FALSE)) -> $0.00 | N22: =IF(ISBLANK(K22),0,VLOOKUP(K22,'Materials Catalog Input'!$B$5:$I$904,2,FALSE)) -> 0 | O22: $0.00 | P22: =IF(ISBLANK(K22),0,VLOOKUP(K22,'Materials Catalog Input'!$B$5:$I$904,6,FALSE)) -> $0.00 | Q22: $0.00 | R22: $0.00
D23: =IF(ISBLANK(B23),0,VLOOKUP(B23,'Materials Catalog Input'!$B$5:$I$904,4,FALSE)) -> $0.00 | E23: =IF(ISBLANK(B23),0,VLOOKUP(B23,'Materials Catalog Input'!$B$5:$I$904,2,FALSE)) -> 0 | F23: $0.00 | G23: =IF(ISBLANK(B23),0,VLOOKUP(B23,'Materials Catalog Input'!$B$5:$I$904,6,FALSE)) -> $0.00 | H23: $0.00 | I23: $0.00 | M23: =IF(ISBLANK(K23),0,VLOOKUP(K23,'Materials Catalog Input'!$B$5:$I$904,4,FALSE)) -> $0.00 | N23: =IF(ISBLANK(K23),0,VLOOKUP(K23,'Materials Catalog Input'!$B$5:$I$904,2,FALSE)) -> 0 | O23: $0.00 | P23: =IF(ISBLANK(K23),0,VLOOKUP(K23,'Materials Catalog Input'!$B$5:$I$904,6,FALSE)) -> $0.00 | Q23: $0.00 | R23: $0.00
D24: =IF(ISBLANK(B24),0,VLOOKUP(B24,'Materials Catalog Input'!$B$5:$I$904,4,FALSE)) -> $0.00 | E24: =IF(ISBLANK(B24),0,VLOOKUP(B24,'Materials Catalog Input'!$B$5:$I$904,2,FALSE)) -> 0 | F24: $0.00 | G24: =IF(ISBLANK(B24),0,VLOOKUP(B24,'Materials Catalog Input'!$B$5:$I$904,6,FALSE)) -> $0.00 | H24: $0.00 | I24: $0.00 | M24: =IF(ISBLANK(K24),0,VLOOKUP(K24,'Materials Catalog Input'!$B$5:$I$904,4,FALSE)) -> $0.00 | N24: =IF(ISBLANK(K24),0,VLOOKUP(K24,'Materials Catalog Input'!$B$5:$I$904,2,FALSE)) -> 0 | O24: $0.00 | P24: =IF(ISBLANK(K24),0,VLOOKUP(K24,'Materials Catalog Input'!$B$5:$I$904,6,FALSE)) -> $0.00 | Q24: $0.00 | R24: $0.00
D25: =IF(ISBLANK(B25),0,VLOOKUP(B25,'Materials Catalog Input'!$B$5:$I$904,4,FALSE)) -> $0.00 | E25: =IF(ISBLANK(B25),0,VLOOKUP(B25,'Materials Catalog Input'!$B$5:$I$904,2,FALSE)) -> 0 | F25: $0.00 | G25: =IF(ISBLANK(B25),0,VLOOKUP(B25,'Materials Catalog Input'!$B$5:$I$904,6,FALSE)) -> $0.00 | H25: $0.00 | I25: $0.00 | M25: =IF(ISBLANK(K25),0,VLOOKUP(K25,'Materials Catalog Input'!$B$5:$I$904,4,FALSE)) -> $0.00 | N25: =IF(ISBLANK(K25),0,VLOOKUP(K25,'Materials Catalog Input'!$B$5:$I$904,2,FALSE)) -> 0 | O25: $0.00 | P25: =IF(ISBLANK(K25),0,VLOOKUP(K25,'Materials Catalog Input'!$B$5:$I$904,6,FALSE)) -> $0.00 | Q25: $0.00 | R25: $0.00
D26: =IF(ISBLANK(B26),0,VLOOKUP(B26,'Materials Catalog Input'!$B$5:$I$904,4,FALSE)) -> $0.00 | E26: =IF(ISBLANK(B26),0,VLOOKUP(B26,'Materials Catalog Input'!$B$5:$I$904,2,FALSE)) -> 0 | F26: $0.00 | G26: =IF(ISBLANK(B26),0,VLOOKUP(B26,'Materials Catalog Input'!$B$5:$I$904,6,FALSE)) -> $0.00 | H26: $0.00 | I26: $0.00 | M26: =IF(ISBLANK(K26),0,VLOOKUP(K26,'Materials Catalog Input'!$B$5:$I$904,4,FALSE)) -> $0.00 | N26: =IF(ISBLANK(K26),0,VLOOKUP(K26,'Materials Catalog Input'!$B$5:$I$904,2,FALSE)) -> 0 | O26: $0.00 | P26: =IF(ISBLANK(K26),0,VLOOKUP(K26,'Materials Catalog Input'!$B$5:$I$904,6,FALSE)) -> $0.00 | Q26: $0.00 | R26: $0.00
D27: =IF(ISBLANK(B27),0,VLOOKUP(B27,'Materials Catalog Input'!$B$5:$I$904,4,FALSE)) -> $0.00 | E27: =IF(ISBLANK(B27),0,VLOOKUP(B27,'Materials Catalog Input'!$B$5:$I$904,2,FALSE)) -> 0 | F27: $0.00 | G27: =IF(ISBLANK(B27),0,VLOOKUP(B27,'Materials Catalog Input'!$B$5:$I$904,6,FALSE)) -> $0.00 | H27: $0.00 | I27: $0.00 | M27: =IF(ISBLANK(K27),0,VLOOKUP(K27,'Materials Catalog Input'!$B$5:$I$904,4,FALSE)) -> $0.00 | N27: =IF(ISBLANK(K27),0,VLOOKUP(K27,'Materials Catalog Input'!$B$5:$I$904,2,FALSE)) -> 0 | O27: $0.00 | P27: =IF(ISBLANK(K27),0,VLOOKUP(K27,'Materials Catalog Input'!$B$5:$I$904,6,FALSE)) -> $0.00 | Q27: $0.00 | R27: $0.00
D28: =IF(ISBLANK(B28),0,VLOOKUP(B28,'Materials Catalog Input'!$B$5:$I$904,4,FALSE)) -> $0.00 | E28: =IF(ISBLANK(B28),0,VLOOKUP(B28,'Materials Catalog Input'!$B$5:$I$904,2,FALSE)) -> 0 | F28: $0.00 | G28: =IF(ISBLANK(B28),0,VLOOKUP(B28,'Materials Catalog Input'!$B$5:$I$904,6,FALSE)) -> $0.00 | H28: $0.00 | I28: $0.00 | M28: =IF(ISBLANK(K28),0,VLOOKUP(K28,'Materials Catalog Input'!$B$5:$I$904,4,FALSE)) -> $0.00 | N28: =IF(ISBLANK(K28),0,VLOOKUP(K28,'Materials Catalog Input'!$B$5:$I$904,2,FALSE)) -> 0 | O28: $0.00 | P28: =IF(ISBLANK(K28),0,VLOOKUP(K28,'Materials Catalog Input'!$B$5:$I$904,6,FALSE)) -> $0.00 | Q28: $0.00 | R28: $0.00
D29: =IF(ISBLANK(B29),0,VLOOKUP(B29,'Materials Catalog Input'!$B$5:$I$904,4,FALSE)) -> $0.00 | E29: =IF(ISBLANK(B29),0,VLOOKUP(B29,'Materials Catalog Input'!$B$5:$I$904,2,FALSE)) -> 0 | F29: $0.00 | G29: =IF(ISBLANK(B29),0,VLOOKUP(B29,'Materials Catalog Input'!$B$5:$I$904,6,FALSE)) -> $0.00 | H29: $0.00 | I29: $0.00 | M29: =IF(ISBLANK(K29),0,VLOOKUP(K29,'Materials Catalog Input'!$B$5:$I$904,4,FALSE)) -> $0.00 | N29: =IF(ISBLANK(K29),0,VLOOKUP(K29,'Materials Catalog Input'!$B$5:$I$904,2,FALSE)) -> 0 | O29: $0.00 | P29: =IF(ISBLANK(K29),0,VLOOKUP(K29,'Materials Catalog Input'!$B$5:$I$904,6,FALSE)) -> $0.00 | Q29: $0.00 | R29: $0.00
D30: =IF(ISBLANK(B30),0,VLOOKUP(B30,'Materials Catalog Input'!$B$5:$I$904,4,FALSE)) -> $0.00 | E30: =IF(ISBLANK(B30),0,VLOOKUP(B30,'Materials Catalog Input'!$B$5:$I$904,2,FALSE)) -> 0 | F30: $0.00 | G30: =IF(ISBLANK(B30),0,VLOOKUP(B30,'Materials Catalog Input'!$B$5:$I$904,6,FALSE)) -> $0.00 | H30: $0.00 | I30: $0.00 | M30: =IF(ISBLANK(K30),0,VLOOKUP(K30,'Materials Catalog Input'!$B$5:$I$904,4,FALSE)) -> $0.00 | N30: =IF(ISBLANK(K30),0,VLOOKUP(K30,'Materials Catalog Input'!$B$5:$I$904,2,FALSE)) -> 0 | O30: $0.00 | P30: =IF(ISBLANK(K30),0,VLOOKUP(K30,'Materials Catalog Input'!$B$5:$I$904,6,FALSE)) -> $0.00 | Q30: $0.00 | R30: $0.00
D31: =IF(ISBLANK(B31),0,VLOOKUP(B31,'Materials Catalog Input'!$B$5:$I$904,4,FALSE)) -> $0.00 | E31: =IF(ISBLANK(B31),0,VLOOKUP(B31,'Materials Catalog Input'!$B$5:$I$904,2,FALSE)) -> 0 | F31: $0.00 | G31: =IF(ISBLANK(B31),0,VLOOKUP(B31,'Materials Catalog Input'!$B$5:$I$904,6,FALSE)) -> $0.00 | H31: $0.00 | I31: $0.00 | M31: =IF(ISBLANK(K31),0,VLOOKUP(K31,'Materials Catalog Input'!$B$5:$I$904,4,FALSE)) -> $0.00 | N31: =IF(ISBLANK(K31),0,VLOOKUP(K31,'Materials Catalog Input'!$B$5:$I$904,2,FALSE)) -> 0 | O31: $0.00 | P31: =IF(ISBLANK(K31),0,VLOOKUP(K31,'Materials Catalog Input'!$B$5:$I$904,6,FALSE)) -> $0.00 | Q31: $0.00 | R31: $0.00
D32: =IF(ISBLANK(B32),0,VLOOKUP(B32,'Materials Catalog Input'!$B$5:$I$904,4,FALSE)) -> $0.00 | E32: =IF(ISBLANK(B32),0,VLOOKUP(B32,'Materials Catalog Input'!$B$5:$I$904,2,FALSE)) -> 0 | F32: $0.00 | G32: =IF(ISBLANK(B32),0,VLOOKUP(B32,'Materials Catalog Input'!$B$5:$I$904,6,FALSE)) -> $0.00 | H32: $0.00 | I32: $0.00 | M32: =IF(ISBLANK(K32),0,VLOOKUP(K32,'Materials Catalog Input'!$B$5:$I$904,4,FALSE)) -> $0.00 | N32: =IF(ISBLANK(K32),0,VLOOKUP(K32,'Materials Catalog Input'!$B$5:$I$904,2,FALSE)) -> 0 | O32: $0.00 | P32: =IF(ISBLANK(K32),0,VLOOKUP(K32,'Materials Catalog Input'!$B$5:$I$904,6,FALSE)) -> $0.00 | Q32: $0.00 | R32: $0.00
E33: Pipe Covering Totals | F33: =SUM(F5:F32) -> $93.35 | G33: =SUM(G5:G32) -> $2.00 | H33: =SUM(H5:H32) -> $76.68 | I33: =SUM(I5:I32) -> $170.02 | N33: Fitting Cover Totals | O33: =SUM(O5:O32) -> $22.18 | P33: =SUM(P5:P32) -> $3.65 | Q33: =SUM(Q5:Q32) -> $127.62 | R33: =SUM(R5:R32) -> $149.79
B35: Duct Wrap | K35: Additional Materials & Equipment
B36: ID | C36: Qty | D36: Unit Price | E36: Product | F36: Unit Subtotal | G36: Unit Labor | H36: Total Labor | I36: Total Price | K36: ID | L36: Qty | M36: Unit Price | N36: Product | O36: Unit Subtotal | P36: Unit Labor | Q36: Total Labor | R36: Total Price
B37: 268 | C37: 200 | D37: =IF(ISBLANK(B37),0,VLOOKUP(B37,'Materials Catalog Input'!$B$5:$I$904,4,FALSE)) -> $0.24 | E37: =IF(ISBLANK(B37),0,VLOOKUP(B37,'Materials Catalog Input'!$B$5:$I$904,2,FALSE)) -> Duct Wrap 1-1/2" | F37: =C37*D37 -> $48.00 | G37: =IF(ISBLANK(B37),0,VLOOKUP(B37,'Materials Catalog Input'!$B$5:$I$904,6,FALSE)) -> $0.58 | H37: =G37*C37 -> $116.68 | I37: =SUM(F37,H37) -> $164.68 | K37: 500 | L37: 200 | M37: =IF(ISBLANK(K37),0,VLOOKUP(K37,'Materials Catalog Input'!$B$5:$I$904,4,FALSE)) -> $0.82 | N37: =IF(ISBLANK(K37),0,VLOOKUP(K37,'Materials Catalog Input'!$B$5:$I$904,2,FALSE)) -> 1.5 OD - 24 GA x 8 in | O37: =L37*M37 -> $164.16 | P37: =IF(ISBLANK(K37),0,VLOOKUP(K37,'Materials Catalog Input'!$B$5:$I$904,6,FALSE)) -> $3.65 | Q37: =P37*L37 -> $729.25 | R37: =SUM(O37,Q37) -> $893.41
B38: 269 | C38: 10 | D38: =IF(ISBLANK(B38),0,VLOOKUP(B38,'Materials Catalog Input'!$B$5:$I$904,4,FALSE)) -> $0.30 | E38: =IF(ISBLANK(B38),0,VLOOKUP(B38,'Materials Catalog Input'!$B$5:$I$904,2,FALSE)) -> Duct Wrap 2" | F38: =C38*D38 -> $3.00 | G38: =IF(ISBLANK(B38),0,VLOOKUP(B38,'Materials Catalog Input'!$B$5:$I$904,6,FALSE)) -> $0.58 | H38: =G38*C38 -> $5.83 | I38: =SUM(F38,H38) -> $8.83 | K38: 501 | L38: 10 | M38: =IF(ISBLANK(K38),0,VLOOKUP(K38,'Materials Catalog Input'!$B$5:$I$904,4,FALSE)) -> $0.82 | N38: =IF(ISBLANK(K38),0,VLOOKUP(K38,'Materials Catalog Input'!$B$5:$I$904,2,FALSE)) -> 2.0 OD - 22 GA x 8 in | O38: =L38*M38 -> $8.21 | P38: =IF(ISBLANK(K38),0,VLOOKUP(K38,'Materials Catalog Input'!$B$5:$I$904,6,FALSE)) -> $3.65 | Q38: =P38*L38 -> $36.46 | R38: =SUM(O38,Q38) -> $44.67
D39: =IF(ISBLANK(B39),0,VLOOKUP(B39,'Materials Catalog Input'!$B$5:$I$904,4,FALSE)) -> $0.00 | E39: =IF(ISBLANK(B39),0,VLOOKUP(B39,'Materials Catalog Input'!$B$5:$I$904,2,FALSE)) -> 0 | F39: $0.00 | G39: =IF(ISBLANK(B39),0,VLOOKUP(B39,'Materials Catalog Input'!$B$5:$I$904,6,FALSE)) -> $0.00 | H39: $0.00 | I39: $0.00 | M39: =IF(ISBLANK(K39),0,VLOOKUP(K39,'Materials Catalog Input'!$B$5:$I$904,4,FALSE)) -> $0.00 | N39: =IF(ISBLANK(K39),0,VLOOKUP(K39,'Materials Catalog Input'!$B$5:$I$904,2,FALSE)) -> 0 | O39: $0.00 | P39: =IF(ISBLANK(K39),0,VLOOKUP(K39,'Materials Catalog Input'!$B$5:$I$904,6,FALSE)) -> $0.00 | Q39: $0.00 | R39: $0.00
D40: =IF(ISBLANK(B40),0,VLOOKUP(B40,'Materials Catalog Input'!$B$5:$I$904,4,FALSE)) -> $0.00 | E40: =IF(ISBLANK(B40),0,VLOOKUP(B40,'Materials Catalog Input'!$B$5:$I$904,2,FALSE)) -> 0 | F40: $0.00 | G40: =IF(ISBLANK(B40),0,VLOOKUP(B40,'Materials Catalog Input'!$B$5:$I$904,6,FALSE)) -> $0.00 | H40: $0.00 | I40: $0.00 | M40: =IF(ISBLANK(K40),0,VLOOKUP(K40,'Materials Catalog Input'!$B$5:$I$904,4,FALSE)) -> $0.00 | N40: =IF(ISBLANK(K40),0,VLOOKUP(K40,'Materials Catalog Input'!$B$5:$I$904,2,FALSE)) -> 0 | O40: $0.00 | P40: =IF(ISBLANK(K40),0,VLOOKUP(K40,'Materials Catalog Input'!$B$5:$I$904,6,FALSE)) -> $0.00 | Q40: $0.00 | R40: $0.00
D41: =IF(ISBLANK(B41),0,VLOOKUP(B41,'Materials Catalog Input'!$B$5:$I$904,4,FALSE)) -> $0.00 | E41: =IF(ISBLANK(B41),0,VLOOKUP(B41,'Materials Catalog Input'!$B$5:$I$904,2,FALSE)) -> 0 | F41: $0.00 | G41: =IF(ISBLANK(B41),0,VLOOKUP(B41,'Materials Catalog Input'!$B$5:$I$904,6,FALSE)) -> $0.00 | H41: $0.00 | I41: $0.00 | M41: =IF(ISBLANK(K41),0,VLOOKUP(K41,'Materials Catalog Input'!$B$5:$I$904,4,FALSE)) -> $0.00 | N41: =IF(ISBLANK(K41),0,VLOOKUP(K41,'Materials Catalog Input'!$B$5:$I$904,2,FALSE)) -> 0 | O41: $0.00 | P41: =IF(ISBLANK(K41),0,VLOOKUP(K41,'Materials Catalog Input'!$B$5:$I$904,6,FALSE)) -> $0.00 | Q41: $0.00 | R41: $0.00
D42: =IF(ISBLANK(B42),0,VLOOKUP(B42,'Materials Catalog Input'!$B$5:$I$904,4,FALSE)) -> $0.00 | E42: =IF(ISBLANK(B42),0,VLOOKUP(B42,'Materials Catalog Input'!$B$5:$I$904,2,FALSE)) -> 0 | F42: =C42*D42 -> $0.00 | G42: =IF(ISBLANK(B42),0,VLOOKUP(B42,'Materials Catalog Input'!$B$5:$I$904,6,FALSE)) -> $0.00 | H42: =G42*C42 -> $0.00 | I42: $0.00 | M42: =IF(ISBLANK(K42),0,VLOOKUP(K42,'Materials Catalog Input'!$B$5:$I$904,4,FALSE)) -> $0.00 | N42: =IF(ISBLANK(K42),0,VLOOKUP(K42,'Materials Catalog Input'!$B$5:$I$904,2,FALSE)) -> 0 | O42: =L42*M42 -> $0.00 | P42: =IF(ISBLANK(K42),0,VLOOKUP(K42,'Materials Catalog Input'!$B$5:$I$904,6,FALSE)) -> $0.00 | Q42: =P42*L42 -> $0.00 | R42: $0.00
D43: =IF(ISBLANK(B43),0,VLOOKUP(B43,'Materials Catalog Input'!$B$5:$I$904,4,FALSE)) -> $0.00 | E43: =IF(ISBLANK(B43),0,VLOOKUP(B43,'Materials Catalog Input'!$B$5:$I$904,2,FALSE)) -> 0 | F43: =C43*D43 -> $0.00 | G43: =IF(ISBLANK(B43),0,VLOOKUP(B43,'Materials Catalog Input'!$B$5:$I$904,6,FALSE)) -> $0.00 | H43: =G43*C43 -> $0.00 | I43: $0.00 | M43: =IF(ISBLANK(K43),0,VLOOKUP(K43,'Materials Catalog Input'!$B$5:$I$904,4,FALSE)) -> $0.00 | N43: =IF(ISBLANK(K43),0,VLOOKUP(K43,'Materials Catalog Input'!$B$5:$I$904,2,FALSE)) -> 0 | O43: =L43*M43 -> $0.00 | P43: =IF(ISBLANK(K43),0,VLOOKUP(K43,'Materials Catalog Input'!$B$5:$I$904,6,FALSE)) -> $0.00 | Q43: =P43*L43 -> $0.00 | R43: $0.00
D44: =IF(ISBLANK(B44),0,VLOOKUP(B44,'Materials Catalog Input'!$B$5:$I$904,4,FALSE)) -> $0.00 | E44: =IF(ISBLANK(B44),0,VLOOKUP(B44,'Materials Catalog Input'!$B$5:$I$904,2,FALSE)) -> 0 | F44: =C44*D44 -> $0.00 | G44: =IF(ISBLANK(B44),0,VLOOKUP(B44,'Materials Catalog Input'!$B$5:$I$904,6,FALSE)) -> $0.00 | H44: =G44*C44 -> $0.00 | I44: $0.00 | M44: =IF(ISBLANK(K44),0,VLOOKUP(K44,'Materials Catalog Input'!$B$5:$I$904,4,FALSE)) -> $0.00 | N44: =IF(ISBLANK(K44),0,VLOOKUP(K44,'Materials Catalog Input'!$B$5:$I$904,2,FALSE)) -> 0 | O44: =L44*M44 -> $0.00 | P44: =IF(ISBLANK(K44),0,VLOOKUP(K44,'Materials Catalog Input'!$B$5:$I$904,6,FALSE)) -> $0.00 | Q44: =P44*L44 -> $0.00 | R44: $0.00
D45: =IF(ISBLANK(B45),0,VLOOKUP(B45,'Materials Catalog Input'!$B$5:$I$904,4,FALSE)) -> $0.00 | E45: =IF(ISBLANK(B45),0,VLOOKUP(B45,'Materials Catalog Input'!$B$5:$I$904,2,FALSE)) -> 0 | F45: =C45*D45 -> $0.00 | G45: =IF(ISBLANK(B45),0,VLOOKUP(B45,'Materials Catalog Input'!$B$5:$I$904,6,FALSE)) -> $0.00 | H45: =G45*C45 -> $0.00 | I45: $0.00 | M45: =IF(ISBLANK(K45),0,VLOOKUP(K45,'Materials Catalog Input'!$B$5:$I$904,4,FALSE)) -> $0.00 | N45: =IF(ISBLANK(K45),0,VLOOKUP(K45,'Materials Catalog Input'!$B$5:$I$904,2,FALSE)) -> 0 | O45: =L45*M45 -> $0.00 | P45: =IF(ISBLANK(K45),0,VLOOKUP(K45,'Materials Catalog Input'!$B$5:$I$904,6,FALSE)) -> $0.00 | Q45: =P45*L45 -> $0.00 | R45: $0.00
D46: =IF(ISBLANK(B46),0,VLOOKUP(B46,'Materials Catalog Input'!$B$5:$I$904,4,FALSE)) -> $0.00 | E46: =IF(ISBLANK(B46),0,VLOOKUP(B46,'Materials Catalog Input'!$B$5:$I$904,2,FALSE)) -> 0 | F46: =C46*D46 -> $0.00 | G46: =IF(ISBLANK(B46),0,VLOOKUP(B46,'Materials Catalog Input'!$B$5:$I$904,6,FALSE)) -> $0.00 | H46: =G46*C46 -> $0.00 | I46: $0.00 | M46: =IF(ISBLANK(K46),0,VLOOKUP(K46,'Materials Catalog Input'!$B$5:$I$904,4,FALSE)) -> $0.00 | N46: =IF(ISBLANK(K46),0,VLOOKUP(K46,'Materials Catalog Input'!$B$5:$I$904,2,FALSE)) -> 0 | O46: =L46*M46 -> $0.00 | P46: =IF(ISBLANK(K46),0,VLOOKUP(K46,'Materials Catalog Input'!$B$5:$I$904,6,FALSE)) -> $0.00 | Q46: =P46*L46 -> $0.00 | R46: $0.00
D47: =IF(ISBLANK(B47),0,VLOOKUP(B47,'Materials Catalog Input'!$B$5:$I$904,4,FALSE)) -> $0.00 | E47: =IF(ISBLANK(B47),0,VLOOKUP(B47,'Materials Catalog Input'!$B$5:$I$904,2,FALSE)) -> 0 | F47: $0.00 | G47: =IF(ISBLANK(B47),0,VLOOKUP(B47,'Materials Catalog Input'!$B$5:$I$904,6,FALSE)) -> $0.00 | H47: $0.00 | I47: $0.00 | M47: =IF(ISBLANK(K47),0,VLOOKUP(K47,'Materials Catalog Input'!$B$5:$I$904,4,FALSE)) -> $0.00 | N47: =IF(ISBLANK(K47),0,VLOOKUP(K47,'Materials Catalog Input'!$B$5:$I$904,2,FALSE)) -> 0 | O47: $0.00 | P47: =IF(ISBLANK(K47),0,VLOOKUP(K47,'Materials Catalog Input'!$B$5:$I$904,6,FALSE)) -> $0.00 | Q47: $0.00 | R47: $0.00
D48: =IF(ISBLANK(B48),0,VLOOKUP(B48,'Materials Catalog Input'!$B$5:$I$904,4,FALSE)) -> $0.00 | E48: =IF(ISBLANK(B48),0,VLOOKUP(B48,'Materials Catalog Input'!$B$5:$I$904,2,FALSE)) -> 0 | F48: =C48*D48 -> $0.00 | G48: =IF(ISBLANK(B48),0,VLOOKUP(B48,'Materials Catalog Input'!$B$5:$I$904,6,FALSE)) -> $0.00 | H48: =G48*C48 -> $0.00 | I48: $0.00 | M48: =IF(ISBLANK(K48),0,VLOOKUP(K48,'Materials Catalog Input'!$B$5:$I$904,4,FALSE)) -> $0.00 | N48: =IF(ISBLANK(K48),0,VLOOKUP(K48,'Materials Catalog Input'!$B$5:$I$904,2,FALSE)) -> 0 | O48: =L48*M48 -> $0.00 | P48: =IF(ISBLANK(K48),0,VLOOKUP(K48,'Materials Catalog Input'!$B$5:$I$904,6,FALSE)) -> $0.00 | Q48: =P48*L48 -> $0.00 | R48: $0.00
D49: =IF(ISBLANK(B49),0,VLOOKUP(B49,'Materials Catalog Input'!$B$5:$I$904,4,FALSE)) -> $0.00 | E49: =IF(ISBLANK(B49),0,VLOOKUP(B49,'Materials Catalog Input'!$B$5:$I$904,2,FALSE)) -> 0 | F49: $0.00 | G49: =IF(ISBLANK(B49),0,VLOOKUP(B49,'Materials Catalog Input'!$B$5:$I$904,6,FALSE)) -> $0.00 | H49: $0.00 | I49: $0.00 | M49: =IF(ISBLANK(K49),0,VLOOKUP(K49,'Materials Catalog Input'!$B$5:$I$904,4,FALSE)) -> $0.00 | N49: =IF(ISBLANK(K49),0,VLOOKUP(K49,'Materials Catalog Input'!$B$5:$I$904,2,FALSE)) -> 0 | O49: $0.00 | P49: =IF(ISBLANK(K49),0,VLOOKUP(K49,'Materials Catalog Input'!$B$5:$I$904,6,FALSE)) -> $0.00 | Q49: $0.00 | R49: $0.00
D50: =IF(ISBLANK(B50),0,VLOOKUP(B50,'Materials Catalog Input'!$B$5:$I$904,4,FALSE)) -> $0.00 | E50: =IF(ISBLANK(B50),0,VLOOKUP(B50,'Materials Catalog Input'!$B$5:$I$904,2,FALSE)) -> 0 | F50: $0.00 | G50: =IF(ISBLANK(B50),0,VLOOKUP(B50,'Materials Catalog Input'!$B$5:$I$904,6,FALSE)) -> $0.00 | H50: $0.00 | I50: $0.00 | M50: =IF(ISBLANK(K50),0,VLOOKUP(K50,'Materials Catalog Input'!$B$5:$I$904,4,FALSE)) -> $0.00 | N50: =IF(ISBLANK(K50),0,VLOOKUP(K50,'Materials Catalog Input'!$B$5:$I$904,2,FALSE)) -> 0 | O50: $0.00 | P50: =IF(ISBLANK(K50),0,VLOOKUP(K50,'Materials Catalog Input'!$B$5:$I$904,6,FALSE)) -> $0.00 | Q50: $0.00 | R50: $0.00
D51: =IF(ISBLANK(B51),0,VLOOKUP(B51,'Materials Catalog Input'!$B$5:$I$904,4,FALSE)) -> $0.00 | E51: =IF(ISBLANK(B51),0,VLOOKUP(B51,'Materials Catalog Input'!$B$5:$I$904,2,FALSE)) -> 0 | F51: $0.00 | G51: =IF(ISBLANK(B51),0,VLOOKUP(B51,'Materials Catalog Input'!$B$5:$I$904,6,FALSE)) -> $0.00 | H51: $0.00 | I51: $0.00 | M51: =IF(ISBLANK(K51),0,VLOOKUP(K51,'Materials Catalog Input'!$B$5:$I$904,4,FALSE)) -> $0.00 | N51: =IF(ISBLANK(K51),0,VLOOKUP(K51,'Materials Catalog Input'!$B$5:$I$904,2,FALSE)) -> 0 | O51: $0.00 | P51: =IF(ISBLANK(K51),0,VLOOKUP(K51,'Materials Catalog Input'!$B$5:$I$904,6,FALSE)) -> $0.00 | Q51: $0.00 | R51: $0.00
D52: =IF(ISBLANK(B52),0,VLOOKUP(B52,'Materials Catalog Input'!$B$5:$I$904,4,FALSE)) -> $0.00 | E52: =IF(ISBLANK(B52),0,VLOOKUP(B52,'Materials Catalog Input'!$B$5:$I$904,2,FALSE)) -> 0 | F52: $0.00 | G52: =IF(ISBLANK(B52),0,VLOOKUP(B52,'Materials Catalog Input'!$B$5:$I$904,6,FALSE)) -> $0.00 | H52: $0.00 | I52: $0.00 | M52: =IF(ISBLANK(K52),0,VLOOKUP(K52,'Materials Catalog Input'!$B$5:$I$904,4,FALSE)) -> $0.00 | N52: =IF(ISBLANK(K52),0,VLOOKUP(K52,'Materials Catalog Input'!$B$5:$I$904,2,FALSE)) -> 0 | O52: $0.00 | P52: =IF(ISBLANK(K52),0,VLOOKUP(K52,'Materials Catalog Input'!$B$5:$I$904,6,FALSE)) -> $0.00 | Q52: $0.00 | R52: $0.00
D53: =IF(ISBLANK(B53),0,VLOOKUP(B53,'Materials Catalog Input'!$B$5:$I$904,4,FALSE)) -> $0.00 | E53: =IF(ISBLANK(B53),0,VLOOKUP(B53,'Materials Catalog Input'!$B$5:$I$904,2,FALSE)) -> 0 | F53: $0.00 | G53: =IF(ISBLANK(B53),0,VLOOKUP(B53,'Materials Catalog Input'!$B$5:$I$904,6,FALSE)) -> $0.00 | H53: $0.00 | I53: $0.00 | M53: =IF(ISBLANK(K53),0,VLOOKUP(K53,'Materials Catalog Input'!$B$5:$I$904,4,FALSE)) -> $0.00 | N53: =IF(ISBLANK(K53),0,VLOOKUP(K53,'Materials Catalog Input'!$B$5:$I$904,2,FALSE)) -> 0 | O53: $0.00 | P53: =IF(ISBLANK(K53),0,VLOOKUP(K53,'Materials Catalog Input'!$B$5:$I$904,6,FALSE)) -> $0.00 | Q53: $0.00 | R53: $0.00
D54: =IF(ISBLANK(B54),0,VLOOKUP(B54,'Materials Catalog Input'!$B$5:$I$904,4,FALSE)) -> $0.00 | E54: =IF(ISBLANK(B54),0,VLOOKUP(B54,'Materials Catalog Input'!$B$5:$I$904,2,FALSE)) -> 0 | F54: $0.00 | G54: =IF(ISBLANK(B54),0,VLOOKUP(B54,'Materials Catalog Input'!$B$5:$I$904,6,FALSE)) -> $0.00 | H54: $0.00 | I54: $0.00 | M54: =IF(ISBLANK(K54),0,VLOOKUP(K54,'Materials Catalog Input'!$B$5:$I$904,4,FALSE)) -> $0.00 | N54: =IF(ISBLANK(K54),0,VLOOKUP(K54,'Materials Catalog Input'!$B$5:$I$904,2,FALSE)) -> 0 | O54: $0.00 | P54: =IF(ISBLANK(K54),0,VLOOKUP(K54,'Materials Catalog Input'!$B$5:$I$904,6,FALSE)) -> $0.00 | Q54: $0.00 | R54: $0.00
E55: Duct Wrap Totals | F55: =SUM(F37:F54) -> $51.00 | G55: =SUM(G37:G54) -> $1.17 | H55: =SUM(H37:H54) -> $122.51 | I55: =SUM(I37:I54) -> $173.51 | N55: Additional Material Totals | O55: =SUM(O37:O54) -> $172.37 | P55: =SUM(P37:P54) -> $7.29 | Q55: =SUM(Q37:Q54) -> $765.71 | R55: =SUM(R37:R54) -> $938.08
B57: Your Estimate Including Labor (Automatic Calculation) | K57: Your Financial Analysis
B58: Pipe Covering | E58: =SUM(F33) -> $93.35 | K58: Estimate Profitability Analysis (as a % of total Estimate)
B59: Fitting Covers | E59: =SUM(O33) -> $22.18 | L59: =E62 -> $338.89 | M59: =IF(E62>0,E62/E66,0%) -> 17.9% | N59: Materials
B60: Duct Wrap | E60: =SUM(F55) -> $51.00 | L60: =E64 -> $1,092.52 | M60: =IF(E64>0,E64/E66,0%) -> 57.7% | N60: Labor
B61: Additional Materials | E61: =SUM(O55) -> $172.37 | L61: =E62+E64 -> $1,431.41 | M61: =IF(M59+M60>0,M59+M60,0%) -> 75.6% | N61: Materials & Labor
B62: Total Materials | E62: =SUM(E58:E61) -> $338.89 | L62: =E63 -> $32.19 | M62: =IF(E63>0,E63/E66,0%) -> 1.7% | N62: Sales Tax
B63: Sales Tax | E63: =E62*F63 -> $32.19 | F63: 9.50% | H63: % Sales Tax | L63: =E65 -> $429.42 | M63: =IF(E65>0,(E65)/E66,0%) -> 22.7% | N63: Profit (Markup)
B64: Total Labor | E64: =SUM(H33+Q33+H55+Q55) -> $1,092.52 | F64: =E64/'Labor & Overhead Input'!H5 -> 37.45 | H64: Labor Hours | L64: - | M64: =IF(E65>0,(E65)/(E62+E64),0%) -> 30.0% | N64: Profit / Materials & Labor
B65: Markup | E65: =SUM(E62+E64)*F65 -> $429.42 | F65: 30.00% | H65: % Markup
B66: Total Estimate | E66: =SUM(E62:E65) -> $1,893.03 | K66: Material & Labor Analysis (as a % of total Materials)
L67: =E58 -> $93.35 | M67: =IF(E58>0,E58/$E$62,0%) -> 27.5% | N67: Pipe Covering
B68: Your Estimate Including Labor (Manual Calculation for Comparison) | L68: =E59 -> $22.18 | M68: =IF(E59>0,E59/$E$62,0%) -> 6.5% | N68: Fitting Covers
D69: Pipe Covering | E69: =SUM(F33) -> $93.35 | L69: =E60 -> $51.00 | M69: =IF(E60>0,E60/$E$62,0%) -> 15.0% | N69: Duct Wrap
D70: Fitting Covers | E70: =SUM(O33) -> $22.18 | L70: =E61 -> $172.37 | M70: =IF(E61>0,E61/$E$62,0%) -> 50.9% | N70: Add'l Materials
D71: Duct Wrap | E71: =SUM(F55) -> $51.00 | L71: - | M71: =IF(E64>0,E64/E62,0%) -> 322.4% | N71: Labor/Materials
D72: Additional Materials | E72: =SUM(O55) -> $172.37
D73: Total Materials | E73: =SUM(E69:E72) -> $338.89 | K73: Project Name & No.
B74: Sales Tax | E74: =E73*F74 -> $32.19 | F74: 9.50% | H74: % Sales Tax
D75: Total Labor | E75: =F75*'Labor & Overhead Input'!H5 -> $29.17 | F75: 1.00 | H75: Labor Hours | K75: Date of Estimate:
D76: Markup | E76: =SUM(E73+E75)*F76 -> $110.42 | F76: 30.00% | H76: % Markup
D77: Total Estimate | E77: =SUM(E73:E76) -> $510.67 | K77: Estimate Valid Until:
B81: Optimized for Screen Resolution 2560 x 1440
B82: Free Estimation Template for Excel
B83: Copyright 2000-2011 Thomas Insulation Corporation
B84: All Rights Reserved

Sheet Materials Catalog Input
B1: Materials Catalog | I1: "Do-It-Yourself" Estimation Worksheet
I2: a free estimation template for MS Excel from Thomas Insulation Corporation
H3: Price Markup Rate: | I3: 20%
B4: Product ID | C4: Product Name | D4: My Cost | E4: Price Markup | F4: Material Factor | G4: Labor Factor | H4: Description | I4: Category
B5: 100 | C5: 1/2 x 1/2 | D5: $1.07 | E5: =D5*(1+$I$3) -> $1.28 | F5: 25.0 | G5: =IF(F5>0,PRODUCT('Labor & Overhead Input'!$H$5/'Materials Catalog Input'!F5),"0") -> $1.17 | H5: Knauf | I5: Fiberglass
B6: 101 | C6: 1/2 x 1 | D6: $1.10 | E6: $1.32 | F6: 35.0 | G6: =IF(F6>0,PRODUCT('Labor & Overhead Input'!$H$5/'Materials Catalog Input'!F6),"0") -> $0.83 | H6: Knauf | I6: Fiberglass
B7: 102 | C7: 1/2 x 1-1/2 | D7: $2.26 | E7: $2.71 | F7: 35.0 | G7: =IF(F7>0,PRODUCT('Labor & Overhead Input'!$H$5/'Materials Catalog Input'!F7),"0") -> $0.83 | H7: Knauf | I7: Fiberglass
B8: 103 | C8: 1/2 x 2 | D8: $3.53 | E8: $4.23 | F8: 35.0 | G8: =IF(F8>0,PRODUCT('Labor & Overhead Input'!$H$5/'Materials Catalog Input'!F8),"0") -> $0.83 | H8: Knauf | I8: Fiberglass
B9: 104 | C9: 3/4 x 1/2 | D9: $1.24 | E9: $1.48 | F9: 35.0 | G9: =IF(F9>0,PRODUCT('Labor & Overhead Input'!$H$5/'Materials Catalog Input'!F9),"0") -> $0.83 | H9: Knauf | I9: Fiberglass
B10: 105 | C10: 3/4 x 1 | D10: $1.27 | E10: $1.53 | F10: 35.0 | G10: =IF(F10>0,PRODUCT('Labor & Overhead Input'!$H$5/'Materials Catalog Input'!F10),"0") -> $0.83 | H10: Knauf | I10: Fiberglass
B11: 106 | C11: 3/4 x 1-1/2 | D11: $2.36 | E11: $2.84 | F11: 35.0 | G11: =IF(F11>0,PRODUCT('Labor & Overhead Input'!$H$5/'Materials Catalog Input'!F11),"0") -> $0.83 | H11: Knauf | I11: Fiberglass
B12: 107 | C12: 3/4 x 2 | D12: $3.66 | E12: $4.39 | F12: 35.0 | G12: =IF(F12>0,PRODUCT('Labor & Overhead Input'!$H$5/'Materials Catalog Input'!F12),"0") -> $0.83 | H12: Knauf | I12: Fiberglass
B13: 108 | C13: 1 x 1/2 | D13: $1.25 | E13: $1.50 | F13: 35.0 | G13: =IF(F13>0,PRODUCT('Labor & Overhead Input'!$H$5/'Materials Catalog Input'!F13),"0") -> $0.83 | H13: Knauf | I13: Fiberglass
B14: 109 | C14: 1 x 1 | D14: $1.28 | E14: $1.54 | F14: 35.0 | G14: =IF(F14>0,PRODUCT('Labor & Overhead Input'!$H$5/'Materials Catalog Input'!F14),"0") -> $0.83 | H14: Knauf | I14: Fiberglass
B15: 110 | C15: 1 x 1-1/2 | D15: $2.47 | E15: $2.97 | F15: 35.0 | G15: =IF(F15>0,PRODUCT('Labor & Overhead Input'!$H$5/'Materials Catalog Input'!F15),"0") -> $0.83 | H15: Knauf | I15: Fiberglass
B16: 111 | C16: 1 x 2 | D16: $3.90 | E16: $4.68 | F16: 35.0 | G16: =IF(F16>0,PRODUCT('Labor & Overhead Input'!$H$5/'Materials Catalog Input'!F16),"0") -> $0.83 | H16: Knauf | I16: Fiberglass
B17: 112 | C17: 1 x 2-1/2 | D17: $4.78 | E17: $5.73 | F17: 35.0 | G17: =IF(F17>0,PRODUCT('Labor & Overhead Input'!$H$5/'Materials Catalog Input'!F17),"0") -> $0.83 | H17: Knauf | I17: Fiberglass
B18: 113 | C18: 1 x 3 | D18: $6.35 | E18: $7.62 | F18: 35.0 | G18: =IF(F18>0,PRODUCT('Labor & Overhead Input'!$H$5/'Materials Catalog Input'!F18),"0") -> $0.83 | H18: Knauf | I18: Fiberglass
B19: 114 | C19: 1 x 3-1/2 | D19: $8.09 | E19: $9.71 | F19: 35.0 | G19: =IF(F19>0,PRODUCT('Labor & Overhead Input'!$H$5/'Materials Catalog Input'!F19),"0") -> $0.83 | H19: Knauf | I19: Fiberglass
B20: 115 | C20: 1 x 4 | D20: $11.03 | E20: $13.23 | F20: 35.0 | G20: =IF(F20>0,PRODUCT('Labor & Overhead Input'!$H$5/'Materials Catalog Input'!F20),"0") -> $0.83 | H20: Knauf | I20: Fiberglass
B21: 116 | C21: 1 x 4-1/2 | D21: $13.73 | E21: $16.47 | F21: 35.0 | G21: =IF(F21>0,PRODUCT('Labor & Overhead Input'!$H$5/'Materials Catalog Input'!F21),"0") -> $0.83 | H21: Knauf | I21: Fiberglass
B22: 117 | C22: 1-1/4 x 1/2 | D22: $1.43 | E22: $1.71 | F22: 35.0 | G22: =IF(F22>0,PRODUCT('Labor & Overhead Input'!$H$5/'Materials Catalog Input'!F22),"0") -> $0.83 | H22: Knauf | I22: Fiberglass
B23: 118 | C23: 1-1/4 x 1 | D23: $1.48 | E23: $1.77 | F23: 35.0 | G23: =IF(F23>0,PRODUCT('Labor & Overhead Input'!$H$5/'Materials Catalog Input'!F23),"0") -> $0.83 | H23: Knauf | I23: Fiberglass
B24: 119 | C24: 1-1/4 x 1-1/2 | D24: $2.65 | E24: $3.18 | F24: 35.0 | G24: =IF(F24>0,PRODUCT('Labor & Overhead Input'!$H$5/'Materials Catalog Input'!F24),"0") -> $0.83 | H24: Knauf | I24: Fiberglass
B25: 120 | C25: 1-1/4 x 2 | D25: $4.14 | E25: $4.97 | F25: 35.0 | G25: =IF(F25>0,PRODUCT('Labor & Overhead Input'!$H$5/'Materials Catalog Input'!F25),"0") -> $0.83 | H25: Knauf | I25: Fiberglass
B26: 121 | C26: 1-1/2 x 1/2 | D26: $1.52 | E26: $1.83 | F26: 35.0 | G26: =IF(F26>0,PRODUCT('Labor & Overhead Input'!$H$5/'Materials Catalog Input'!F26),"0") -> $0.83 | H26: Knauf | I26: Fiberglass
B27: 122 | C27: 1-1/2 x 1 | D27: $1.57 | E27: $1.89 | F27: 35.0 | G27: =IF(F27>0,PRODUCT('Labor & Overhead Input'!$H$5/'Materials Catalog Input'!F27),"0") -> $0.83 | H27: Knauf | I27: Fiberglass
B28: 123 | C28: 1-1/2 x 1-1/2 | D28: $2.80 | E28: $3.36 | F28: 35.0 | G28: =IF(F28>0,PRODUCT('Labor & Overhead Input'!$H$5/'Materials Catalog Input'!F28),"0") -> $0.83 | H28: Knauf | I28: Fiberglass
B29: 124 | C29: 1-1/2 x 2 | D29: $4.37 | E29: $5.24 | F29: 35.0 | G29: =IF(F29>0,PRODUCT('Labor & Overhead Input'!$H$5/'Materials Catalog Input'!F29),"0") -> $0.83 | H29: Knauf | I29: Fiberglass | X29: Material Factor Calculation Help
B30: 125 | C30: 1-1/2 x 2-1/2 | D30: $5.22 | E30: $6.26 | F30: 35.0 | G30: =IF(F30>0,PRODUCT('Labor & Overhead Input'!$H$5/'Materials Catalog Input'!F30),"0") -> $0.83 | H30: Knauf | I30: Fiberglass | K30: Product | L30: Quantity Per Hour
B31: 126 | C31: 1-1/2 x 3 | D31: $6.80 | E31: $8.16 | F31: 35.0 | G31: =IF(F31>0,PRODUCT('Labor & Overhead Input'!$H$5/'Materials Catalog Input'!F31),"0") -> $0.83 | H31: Knauf | I31: Fiberglass | K31: 1/2 x 1/2 | L31: 20.00
B32: 127 | C32: 1-1/2 x 3-1/2 | D32: $8.56 | E32: $10.27 | F32: 35.0 | G32: =IF(F32>0,PRODUCT('Labor & Overhead Input'!$H$5/'Materials Catalog Input'!F32),"0") -> $0.83 | H32: Knauf | I32: Fiberglass | K32: 1/2 x 1 | L32: 21.00
B33: 128 | C33: 1-1/2 x 4 | D33: $11.50 | E33: $13.80 | F33: 35.0 | G33: =IF(F33>0,PRODUCT('Labor & Overhead Input'!$H$5/'Materials Catalog Input'!F33),"0") -> $0.83 | H33: Knauf | I33: Fiberglass | K33: 1/2 x 1-1/2 | L33: 22.00
B34: 129 | C34: 1-1/2 x 4-1/2 | D34: $14.63 | E34: $17.55 | F34: 35.0 | G34: =IF(F34>0,PRODUCT('Labor & Overhead Input'!$H$5/'Materials Catalog Input'!F34),"0") -> $0.83 | H34: Knauf | I34: Fiberglass | K34: 1/2 x 2 | L34: 23.00
B35: 130 | C35: 2 x 1/2 | D35: $1.68 | E35: $2.02 | F35: 35.0 | G35: =IF(F35>0,PRODUCT('Labor & Overhead Input'!$H$5/'Materials Catalog Input'!F35),"0") -> $0.83 | H35: Knauf | I35: Fiberglass | K35: 3/4 x 1/2 | L35: 24.00
B36: 131 | C36: 2 x 1 | D36: $1.73 | E36: $2.07 | F36: 35.0 | G36: =IF(F36>0,PRODUCT('Labor & Overhead Input'!$H$5/'Materials Catalog Input'!F36),"0") -> $0.83 | H36: Knauf | I36: Fiberglass | K36: 3/4 x 1 | L36: 25.00
B37: 132 | C37: 2 x 1-1/2 | D37: $3.06 | E37: $3.67 | F37: 35.0 | G37: =IF(F37>0,PRODUCT('Labor & Overhead Input'!$H$5/'Materials Catalog Input'!F37),"0") -> $0.83 | H37: Knauf | I37: Fiberglass | K37: 3/4 x 1-1/2 | L37: 26.00
B38: 133 | C38: 2 x 2 | D38: $4.54 | E38: $5.44 | F38: 35.0 | G38: =IF(F38>0,PRODUCT('Labor & Overhead Input'!$H$5/'Materials Catalog Input'!F38),"0") -> $0.83 | H38: Knauf | I38: Fiberglass | K38: 3/4 x 2 | L38: 27.00
B39: 134 | C39: 2-1/2 x 1/2 | D39: $1.85 | E39: $2.22 | F39: 35.0 | G39: =IF(F39>0,PRODUCT('Labor & Overhead Input'!$H$5/'Materials Catalog Input'!F39),"0") -> $0.83 | H39: Knauf | I39: Fiberglass | K39: 1 x 1/2 | L39: 39.00
B40: 135 | C40: 2-1/2 x 1 | D40: $1.90 | E40: $2.28 | F40: 35.0 | G40: =IF(F40>0,PRODUCT('Labor & Overhead Input'!$H$5/'Materials Catalog Input'!F40),"0") -> $0.83 | H40: Knauf | I40: Fiberglass | K40: 1 x 1 | L40: 39.00
B41: 136 | C41: 2-1/2 x 1-1/2 | D41: $3.36 | E41: $4.03 | F41: 35.0 | G41: =IF(F41>0,PRODUCT('Labor & Overhead Input'!$H$5/'Materials Catalog Input'!F41),"0") -> $0.83 | H41: Knauf | I41: Fiberglass | K41: 2 x 1 | L41: 39.00
B42: 137 | C42: 2-1/2 x 2 | D42: $4.86 | E42: $5.83 | F42: 35.0 | G42: =IF(F42>0,PRODUCT('Labor & Overhead Input'!$H$5/'Materials Catalog Input'!F42),"0") -> $0.83 | H42: Knauf | I42: Fiberglass | K42: 3 x 1 | L42: 39.00
B43: 138 | C43: 3 x 1/2 | D43: $2.08 | E43: $2.49 | F43: 35.0 | G43: =IF(F43>0,PRODUCT('Labor & Overhead Input'!$H$5/'Materials Catalog Input'!F43),"0") -> $0.83 | H43: Knauf | I43: Fiberglass | K43: 4 x 1 | L43: 39.00
B44: 139 | C44: 3 x 1 | D44: $2.14 | E44: $2.56 | F44: 35.0 | G44: =IF(F44>0,PRODUCT('Labor & Overhead Input'!$H$5/'Materials Catalog Input'!F44),"0") -> $0.83 | H44: Knauf | I44: Fiberglass | K44: 5 x 1 | L44: 39.00
B45: 140 | C45: 3 x 1-1/2 | D45: $3.46 | E45: $4.15 | F45: 35.0 | G45: =IF(F45>0,PRODUCT('Labor & Overhead Input'!$H$5/'Materials Catalog Input'!F45),"0") -> $0.83 | H45: Knauf | I45: Fiberglass | K45: 6 x 1 | L45: 39.00
B46: 141 | C46: 3 x 2 | D46: $5.24 | E46: $6.29 | F46: 35.0 | G46: =IF(F46>0,PRODUCT('Labor & Overhead Input'!$H$5/'Materials Catalog Input'!F46),"0") -> $0.83 | H46: Knauf | I46: Fiberglass | K46: 7 x 1 | L46: 39.00
B47: 142 | C47: 3-1/2 x 1/2 | D47: $2.08 | E47: $2.49 | F47: 35.0 | G47: =IF(F47>0,PRODUCT('Labor & Overhead Input'!$H$5/'Materials Catalog Input'!F47),"0") -> $0.83 | H47: Knauf | I47: Fiberglass | K47: 8 x 1 | L47: 39.00
B48: 143 | C48: 3-1/2 x 1 | D48: $2.14 | E48: $2.56 | F48: 35.0 | G48: =IF(F48>0,PRODUCT('Labor & Overhead Input'!$H$5/'Materials Catalog Input'!F48),"0") -> $0.83 | H48: Knauf | I48: Fiberglass | K48: 9 x 1 | L48: 39.00
B49: 144 | C49: 3-1/2 x 1-1/2 | D49: $3.46 | E49: $4.15 | F49: 35.0 | G49: =IF(F49>0,PRODUCT('Labor & Overhead Input'!$H$5/'Materials Catalog Input'!F49),"0") -> $0.83 | H49: Knauf | I49: Fiberglass | K49: 11 x 1 | L49: 39.00
B50: 145 | C50: 3-1/2 x 2 | D50: $5.24 | E50: $6.29 | F50: 35.0 | G50: =IF(F50>0,PRODUCT('Labor & Overhead Input'!$H$5/'Materials Catalog Input'!F50),"0") -> $0.83 | H50: Knauf | I50: Fiberglass | K50: 11 x 1 | L50: 39.00
B51: 146 | C51: 4 x 1/2 | D51: $2.68 | E51: $3.21 | F51: 35.0 | G51: =IF(F51>0,PRODUCT('Labor & Overhead Input'!$H$5/'Materials Catalog Input'!F51),"0") -> $0.83 | H51: Knauf | I51: Fiberglass | K51: Average Rate | L51: =AVERAGE(L31:L50) -> 32.80 | X51: Optimized for Screen Resolution 2560 x 1440
B52: 147 | C52: 4 x 1 | D52: $2.76 | E52: $3.31 | F52: 35.0 | G52: =IF(F52>0,PRODUCT('Labor & Overhead Input'!$H$5/'Materials Catalog Input'!F52),"0") -> $0.83 | H52: Knauf | I52: Fiberglass | K52: Median Rate | L52: =MEDIAN(L31:L50) -> 39.00 | X52: Free Estimation Template for Excel
B53: 148 | C53: 4 x 1-1/2 | D53: $3.96 | E53: $4.75 | F53: 35.0 | G53: =IF(F53>0,PRODUCT('Labor & Overhead Input'!$H$5/'Materials Catalog Input'!F53),"0") -> $0.83 | H53: Knauf | I53: Fiberglass | K53: Std. Deviation | L53: =STDEV(L31:L50) -> 7.93 | X53: Copyright 2000-2011 Thomas Insulation Corporation
B54: 149 | C54: 4 x 2 | D54: $6.01 | E54: $7.21 | F54: 35.0 | G54: =IF(F54>0,PRODUCT('Labor & Overhead Input'!$H$5/'Materials Catalog Input'!F54),"0") -> $0.83 | H54: Knauf | I54: Fiberglass | X54: All Rights Reserved
B55: 150 | C55: 4-1/2 x 1/2 | D55: $2.83 | E55: $3.40 | F55: 35.0 | G55: =IF(F55>0,PRODUCT('Labor & Overhead Input'!$H$5/'Materials Catalog Input'!F55),"0") -> $0.83 | H55: Knauf | I55: Fiberglass
B56: 151 | C56: 4-1/2 x 1 | D56: $2.92 | E56: $3.50 | F56: 35.0 | G56: =IF(F56>0,PRODUCT('Labor & Overhead Input'!$H$5/'Materials Catalog Input'!F56),"0") -> $0.83 | H56: Knauf | I56: Fiberglass
B57: 152 | C57: 4-1/2 x 1-1/2 | D57: $4.16 | E57: $5.00 | F57: 35.0 | G57: =IF(F57>0,PRODUCT('Labor & Overhead Input'!$H$5/'Materials Catalog Input'!F57),"0") -> $0.83 | H57: Knauf | I57: Fiberglass
B58: 153 | C58: 4-1/2 x 2 | D58: $6.47 | E58: $7.76 | F58: 35.0 | G58: =IF(F58>0,PRODUCT('Labor & Overhead Input'!$H$5/'Materials Catalog Input'!F58),"0") -> $0.83 | H58: Knauf | I58: Fiberglass
B59: 154 | C59: 5 x 1/2 | D59: $3.08 | E59: $3.70 | F59: 35.0 | G59: =IF(F59>0,PRODUCT('Labor & Overhead Input'!$H$5/'Materials Catalog Input'!F59),"0") -> $0.83 | H59: Knauf | I59: Fiberglass
B60: 155 | C60: 5 x 1 | D60: $3.18 | E60: $3.82 | F60: 35.0 | G60: =IF(F60>0,PRODUCT('Labor & Overhead Input'!$H$5/'Materials Catalog Input'!F60),"0") -> $0.83 | H60: Knauf | I60: Fiberglass
B61: 156 | C61: 5 x 1-1/2 | D61: $4.42 | E61: $5.30 | F61: 35.0 | G61: =IF(F61>0,PRODUCT('Labor & Overhead Input'!$H$5/'Materials Catalog Input'!F61),"0") -> $0.83 | H61: Knauf | I61: Fiberglass
B62: 157 | C62: 5 x 2 | D62: $6.80 | E62: $8.16 | F62: 35.0 | G62: =IF(F62>0,PRODUCT('Labor & Overhead Input'!$H$5/'Materials Catalog Input'!F62),"0") -> $0.83 | H62: Knauf | I62: Fiberglass
B63: 158 | C63: 6 x 1/2 | D63: $3.49 | E63: $4.19 | F63: 35.0 | G63: =IF(F63>0,PRODUCT('Labor & Overhead Input'!$H$5/'Materials Catalog Input'!F63),"0") -> $0.83 | H63: Knauf | I63: Fiberglass
B64: 159 | C64: 6 x 1 | D64: $3.60 | E64: $4.32 | F64: 35.0 | G64: =IF(F64>0,PRODUCT('Labor & Overhead Input'!$H$5/'Materials Catalog Input'!F64),"0") -> $0.83 | H64: Knauf | I64: Fiberglass
B65: 160 | C65: 6 x 1-1/2 | D65: $4.85 | E65: $5.82 | F65: 35.0 | G65: =IF(F65>0,PRODUCT('Labor & Overhead Input'!$H$5/'Materials Catalog Input'!F65),"0") -> $0.83 | H65: Knauf | I65: Fiberglass
B66: 161 | C66: 6 x 2 | D66: $7.43 | E66: $8.91 | F66: 35.0 | G66: =IF(F66>0,PRODUCT('Labor & Overhead Input'!$H$5/'Materials Catalog Input'!F66),"0") -> $0.83 | H66: Knauf | I66: Fiberglass
B67: 162 | C67: 7 x 1/2 | D67: $4.30 | E67: $5.16 | F67: 35.0 | G67: =IF(F67>0,PRODUCT('Labor & Overhead Input'!$H$5/'Materials Catalog Input'!F67),"0") -> $0.83 | H67: Knauf | I67: Fiberglass
B68: 163 | C68: 7 x 1 | D68: $4.43 | E68: $5.31 | F68: 35.0 | G68: =IF(F68>0,PRODUCT('Labor & Overhead Input'!$H$5/'Materials Catalog Input'!F68),"0") -> $0.83 | H68: Knauf | I68: Fiberglass
B69: 164 | C69: 7 x 1-1/2 | D69: $5.59 | E69: =D69*(1+$I$3) -> $6.71 | F69: 35.0 | G69: =IF(F69>0,PRODUCT('Labor & Overhead Input'!$H$5/'Materials Catalog Input'!F69),"0") -> $0.83 | H69: Knauf | I69: Fiberglass
B70: 165 | C70: 7 x 2 | D70: $8.52 | E70: $10.22 | F70: 35.0 | G70: =IF(F70>0,PRODUCT('Labor & Overhead Input'!$H$5/'Materials Catalog Input'!F70),"0") -> $0.83 | H70: Knauf | I70: Fiberglass
B71: 166 | C71: 8 x 1/2 | D71: $4.99 | E71: $5.99 | F71: 35.0 | G71: =IF(F71>0,PRODUCT('Labor & Overhead Input'!$H$5/'Materials Catalog Input'!F71),"0") -> $0.83 | H71: Knauf | I71: Fiberglass
B72: 167 | C72: 8 x 1 | D72: $5.15 | E72: $6.18 | F72: 35.0 | G72: =IF(F72>0,PRODUCT('Labor & Overhead Input'!$H$5/'Materials Catalog Input'!F72),"0") -> $0.83 | H72: Knauf | I72: Fiberglass
B73: 168 | C73: 8 x 1-1/2 | D73: $6.06 | E73: $7.27 | F73: 35.0 | G73: =IF(F73>0,PRODUCT('Labor & Overhead Input'!$H$5/'Materials Catalog Input'!F73),"0") -> $0.83 | H73: Knauf | I73: Fiberglass
B74: 169 | C74: 8 x 2 | D74: $9.19 | E74: $11.03 | F74: 35.0 | G74: =IF(F74>0,PRODUCT('Labor & Overhead Input'!$H$5/'Materials Catalog Input'!F74),"0") -> $0.83 | H74: Knauf | I74: Fiberglass
B75: 170 | C75: 9 x 1/2 | D75: $5.42 | E75: $6.51 | F75: 35.0 | G75: =IF(F75>0,PRODUCT('Labor & Overhead Input'!$H$5/'Materials Catalog Input'!F75),"0") -> $0.83 | H75: Knauf | I75: Fiberglass
B76: 171 | C76: 9 x 1 | D76: $5.59 | E76: $6.71 | F76: 35.0 | G76: =IF(F76>0,PRODUCT('Labor & Overhead Input'!$H$5/'Materials Catalog Input'!F76),"0") -> $0.83 | H76: Knauf | I76: Fiberglass
B77: 172 | C77: 9 x 1-1/2 | D77: $6.91 | E77: $8.29 | F77: 35.0 | G77: =IF(F77>0,PRODUCT('Labor & Overhead Input'!$H$5/'Materials Catalog Input'!F77),"0") -> $0.83 | H77: Knauf | I77: Fiberglass
B78: 173 | C78: 9 x 2 | D78: $10.14 | E78: $12.17 | F78: 35.0 | G78: =IF(F78>0,PRODUCT('Labor & Overhead Input'!$H$5/'Materials Catalog Input'!F78),"0") -> $0.83 | H78: Knauf | I78: Fiberglass
B79: 174 | C79: 10 x 1/2 | D79: $6.10 | E79: $7.32 | F79: 35.0 | G79: =IF(F79>0,PRODUCT('Labor & Overhead Input'!$H$5/'Materials Catalog Input'!F79),"0") -> $0.83 | H79: Knauf | I79: Fiberglass
B80: 175 | C80: 10 x 1 | D80: $6.28 | E80: $7.53 | F80: 35.0 | G80: =IF(F80>0,PRODUCT('Labor & Overhead Input'!$H$5/'Materials Catalog Input'!F80),"0") -> $0.83 | H80: Knauf | I80: Fiberglass
B81: 176 | C81: 10 x 1-1/2 | D81: $7.97 | E81: $9.56 | F81: 35.0 | G81: =IF(F81>0,PRODUCT('Labor & Overhead Input'!$H$5/'Materials Catalog Input'!F81),"0") -> $0.83 | H81: Knauf | I81: Fiberglass
B82: 177 | C82: 10 x 2 | D82: $11.47 | E82: $13.77 | F82: 35.0 | G82: =IF(F82>0,PRODUCT('Labor & Overhead Input'!$H$5/'Materials Catalog Input'!F82),"0") -> $0.83 | H82: Knauf | I82: Fiberglass
B83: 178 | C83: 11 x 1 | D83: $6.65 | E83: $7.98 | F83: 35.0 | G83: =IF(F83>0,PRODUCT('Labor & Overhead Input'!$H$5/'Materials Catalog Input'!F83),"0") -> $0.83 | H83: Knauf | I83: Fiberglass
B84: 179 | C84: 11 x 1-1/2 | D84: $8.26 | E84: $9.91 | F84: 35.0 | G84: =IF(F84>0,PRODUCT('Labor & Overhead Input'!$H$5/'Materials Catalog Input'!F84),"0") -> $0.83 | H84: Knauf | I84: Fiberglass
B85: 180 | C85: 11 x 2 | D85: $11.94 | E85: $14.33 | F85: 35.0 | G85: =IF(F85>0,PRODUCT('Labor & Overhead Input'!$H$5/'Materials Catalog Input'!F85),"0") -> $0.83 | H85: Knauf | I85: Fiberglass
B86: 181 | C86: 12 x 1 | D86: $7.13 | E86: $8.55 | F86: 35.0 | G86: =IF(F86>0,PRODUCT('Labor & Overhead Input'!$H$5/'Materials Catalog Input'!F86),"0") -> $0.83 | H86: Knauf | I86: Fiberglass
B87: 182 | C87: 12 x 1-1/2 | D87: $8.69 | E87: $10.43 | F87: 35.0 | G87: =IF(F87>0,PRODUCT('Labor & Overhead Input'!$H$5/'Materials Catalog Input'!F87),"0") -> $0.83 | H87: Knauf | I87: Fiberglass
B88: 183 | C88: 12 x 2 | D88: $12.66 | E88: $15.19 | F88: 35.0 | G88: =IF(F88>0,PRODUCT('Labor & Overhead Input'!$H$5/'Materials Catalog Input'!F88),"0") -> $0.83 | H88: Knauf | I88: Fiberglass
B89: 184 | C89: 14 x 1 | D89: $8.27 | E89: $9.92 | F89: 35.0 | G89: =IF(F89>0,PRODUCT('Labor & Overhead Input'!$H$5/'Materials Catalog Input'!F89),"0") -> $0.83 | H89: Knauf | I89: Fiberglass
B90: 185 | C90: 14 x 1-1/2 | D90: $10.02 | E90: $12.02 | F90: 35.0 | G90: =IF(F90>0,PRODUCT('Labor & Overhead Input'!$H$5/'Materials Catalog Input'!F90),"0") -> $0.83 | H90: Knauf | I90: Fiberglass
B91: 186 | C91: 14 x 2 | D91: $14.27 | E91: $17.12 | F91: 35.0 | G91: =IF(F91>0,PRODUCT('Labor & Overhead Input'!$H$5/'Materials Catalog Input'!F91),"0") -> $0.83 | H91: Knauf | I91: Fiberglass
B92: 187 | C92: 15 x 1 | D92: $8.27 | E92: $9.92 | F92: 35.0 | G92: =IF(F92>0,PRODUCT('Labor & Overhead Input'!$H$5/'Materials Catalog Input'!F92),"0") -> $0.83 | H92: Knauf | I92: Fiberglass
B93: 188 | C93: 15 x 1-1/2 | D93: $10.02 | E93: $12.02 | F93: 35.0 | G93: =IF(F93>0,PRODUCT('Labor & Overhead Input'!$H$5/'Materials Catalog Input'!F93),"0") -> $0.83 | H93: Knauf | I93: Fiberglass
B94: 189 | C94: 15 x 2 | D94: $14.27 | E94: $17.12 | F94: 35.0 | G94: =IF(F94>0,PRODUCT('Labor & Overhead Input'!$H$5/'Materials Catalog Input'!F94),"0") -> $0.83 | H94: Knauf | I94: Fiberglass
B95: 190 | C95: 16 x 1 | D95: $9.17 | E95: $11.00 | F95: 35.0 | G95: =IF(F95>0,PRODUCT('Labor & Overhead Input'!$H$5/'Materials Catalog Input'!F95),"0") -> $0.83 | H95: Knauf | I95: Fiberglass
B96: 191 | C96: 16 x 1-1/2 | D96: $11.09 | E96: $13.31 | F96: 35.0 | G96: =IF(F96>0,PRODUCT('Labor & Overhead Input'!$H$5/'Materials Catalog Input'!F96),"0") -> $0.83 | H96: Knauf | I96: Fiberglass
B97: 192 | C97: 16 x 2 | D97: $15.47 | E97: $18.56 | F97: 35.0 | G97: =IF(F97>0,PRODUCT('Labor & Overhead Input'!$H$5/'Materials Catalog Input'!F97),"0") -> $0.83 | H97: Knauf | I97: Fiberglass
B98: 193 | C98: Enter New Product | D98: $0.00 | E98: $0.00 | G98: =IF(F98>0,PRODUCT('Labor & Overhead Input'!$H$5/'Materials Catalog Input'!F98),"0") -> 0 | H98: Enter Description | I98: Category
B99: 194 | C99: Enter New Product | D99: $0.00 | E99: $0.00 | G99: =IF(F99>0,PRODUCT('Labor & Overhead Input'!$H$5/'Materials Catalog Input'!F99),"0") -> 0 | H99: Enter Description | I99: Category
B100: 195 | C100: Enter New Product | D100: $0.00 | E100: $0.00 | G100: =IF(F100>0,PRODUCT('Labor & Overhead Input'!$H$5/'Materials Catalog Input'!F100),"0") -> 0 | H100: Enter Description | I100: Category
B101: 196 | C101: Enter New Product | D101: $0.00 | E101: $0.00 | G101: =IF(F101>0,PRODUCT('Labor & Overhead Input'!$H$5/'Materials Catalog Input'!F101),"0") -> 0 | H101: Enter Description | I101: Category
B102: 197 | C102: Enter New Product | D102: $0.00 | E102: $0.00 | G102: =IF(F102>0,PRODUCT('Labor & Overhead Input'!$H$5/'Materials Catalog Input'!F102),"0") -> 0 | H102: Enter Description | I102: Category
B103: 198 | C103: Enter New Product | D103: $0.00 | E103: $0.00 | G103: =IF(F103>0,PRODUCT('Labor & Overhead Input'!$H$5/'Materials Catalog Input'!F103),"0") -> 0 | H103: Enter Description | I103: Category
B104: 199 | C104: Enter New Product | D104: $0.00 | E104: $0.00 | G104: =IF(F104>0,PRODUCT('Labor & Overhead Input'!$H$5/'Materials Catalog Input'!F104),"0") -> 0 | H104: Enter Description | I104: Category
B105: 200 | C105: 5/8 x 1/2 | D105: $1.07 | E105: $1.28 | F105: 35.0 | G105: =IF(F105>0,PRODUCT('Labor & Overhead Input'!$H$5/'Materials Catalog Input'!F105),"0") -> $0.83 | H105: Knauf | I105: Fiberglass
B106: 201 | C106: 5/8 x 1 | D106: $1.10 | E106: $1.32 | F106: 35.0 | G106: =IF(F106>0,PRODUCT('Labor & Overhead Input'!$H$5/'Materials Catalog Input'!F106),"0") -> $0.83 | H106: Knauf | I106: Fiberglass
B107: 202 | C107: 5/8 x 1-1/2 | D107: $2.26 | E107: $2.71 | F107: 35.0 | G107: =IF(F107>0,PRODUCT('Labor & Overhead Input'!$H$5/'Materials Catalog Input'!F107),"0") -> $0.83 | H107: Knauf | I107: Fiberglass
B108: 203 | C108: 5/8 x 2 | D108: $3.53 | E108: $4.23 | F108: 35.0 | G108: =IF(F108>0,PRODUCT('Labor & Overhead Input'!$H$5/'Materials Catalog Input'!F108),"0") -> $0.83 | H108: Knauf | I108: Fiberglass
B109: 204 | C109: 7/8 x 1/2 | D109: $1.07 | E109: $1.28 | F109: 35.0 | G109: =IF(F109>0,PRODUCT('Labor & Overhead Input'!$H$5/'Materials Catalog Input'!F109),"0") -> $0.83 | H109: Knauf | I109: Fiberglass
B110: 205 | C110: 7/8 x 1 | D110: $1.10 | E110: $1.32 | F110: 35.0 | G110: =IF(F110>0,PRODUCT('Labor & Overhead Input'!$H$5/'Materials Catalog Input'!F110),"0") -> $0.83 | H110: Knauf | I110: Fiberglass
B111: 206 | C111: 7/8 x 1-1/2 | D111: $2.26 | E111: $2.71 | F111: 35.0 | G111: =IF(F111>0,PRODUCT('Labor & Overhead Input'!$H$5/'Materials Catalog Input'!F111),"0") -> $0.83 | H111: Knauf | I111: Fiberglass
B112: 207 | C112: 7/8 x 2 | D112: $3.53 | E112: $4.23 | F112: 35.0 | G112: =IF(F112>0,PRODUCT('Labor & Overhead Input'!$H$5/'Materials Catalog Input'!F112),"0") -> $0.83 | H112: Knauf | I112: Fiberglass
B113: 208 | C113: 1-1/8 x 1/2 | D113: $1.24 | E113: $1.48 | F113: 35.0 | G113: =IF(F113>0,PRODUCT('Labor & Overhead Input'!$H$5/'Materials Catalog Input'!F113),"0") -> $0.83 | H113: Knauf | I113: Fiberglass
B114: 209 | C114: 1-1/8 x 1 | D114: $1.27 | E114: $1.53 | F114: 35.0 | G114: =IF(F114>0,PRODUCT('Labor & Overhead Input'!$H$5/'Materials Catalog Input'!F114),"0") -> $0.83 | H114: Knauf | I114: Fiberglass
B115: 210 | C115: 1-1/8 x 1-1/2 | D115: $2.36 | E115: $2.84 | F115: 35.0 | G115: =IF(F115>0,PRODUCT('Labor & Overhead Input'!$H$5/'Materials Catalog Input'!F115),"0") -> $0.83 | H115: Knauf | I115: Fiberglass
B116: 211 | C116: 1-1/8 x 2 | D116: $3.66 | E116: $4.39 | F116: 35.0 | G116: =IF(F116>0,PRODUCT('Labor & Overhead Input'!$H$5/'Materials Catalog Input'!F116),"0") -> $0.83 | H116: Knauf | I116: Fiberglass
B117: 212 | C117: 1-3/8 x 1/2 | D117: $1.25 | E117: $1.50 | F117: 35.0 | G117: =IF(F117>0,PRODUCT('Labor & Overhead Input'!$H$5/'Materials Catalog Input'!F117),"0") -> $0.83 | H117: Knauf | I117: Fiberglass
B118: 213 | C118: 1-3/8 x 1 | D118: $1.28 | E118: $1.54 | F118: 35.0 | G118: =IF(F118>0,PRODUCT('Labor & Overhead Input'!$H$5/'Materials Catalog Input'!F118),"0") -> $0.83 | H118: Knauf | I118: Fiberglass
B119: 214 | C119: 1-3/8 x 1-1/2 | D119: $2.47 | E119: $2.97 | F119: 35.0 | G119: =IF(F119>0,PRODUCT('Labor & Overhead Input'!$H$5/'Materials Catalog Input'!F119),"0") -> $0.83 | H119: Knauf | I119: Fiberglass
B120: 215 | C120: 1-3/8 x 2 | D120: $3.90 | E120: $4.68 | F120: 35.0 | G120: =IF(F120>0,PRODUCT('Labor & Overhead Input'!$H$5/'Materials Catalog Input'!F120),"0") -> $0.83 | H120: Knauf | I120: Fiberglass
B121: 216 | C121: 1-5/8 x 1/2 | D121: $1.43 | E121: $1.71 | F121: 35.0 | G121: =IF(F121>0,PRODUCT('Labor & Overhead Input'!$H$5/'Materials Catalog Input'!F121),"0") -> $0.83 | H121: Knauf | I121: Fiberglass
B122: 217 | C122: 1-5/8 x 1 | D122: $1.48 | E122: $1.77 | F122: 35.0 | G122: =IF(F122>0,PRODUCT('Labor & Overhead Input'!$H$5/'Materials Catalog Input'!F122),"0") -> $0.83 | H122: Knauf | I122: Fiberglass
B123: 218 | C123: 1-5/8 x 1-1/2 | D123: $2.65 | E123: $3.18 | F123: 35.0 | G123: =IF(F123>0,PRODUCT('Labor & Overhead Input'!$H$5/'Materials Catalog Input'!F123),"0") -> $0.83 | H123: Knauf | I123: Fiberglass
B124: 219 | C124: 1-5/8 x 2 | D124: $4.14 | E124: $4.97 | F124: 35.0 | G124: =IF(F124>0,PRODUCT('Labor & Overhead Input'!$H$5/'Materials Catalog Input'!F124),"0") -> $0.83 | H124: Knauf | I124: Fiberglass
B125: 220 | C125: 2-1/8 x 1/2 | D125: $1.68 | E125: $2.02 | F125: 35.0 | G125: =IF(F125>0,PRODUCT('Labor & Overhead Input'!$H$5/'Materials Catalog Input'!F125),"0") -> $0.83 | H125: Knauf | I125: Fiberglass
B126: 221 | C126: 2-1/8 x 1 | D126: $1.73 | E126: $2.07 | F126: 35.0 | G126: =IF(F126>0,PRODUCT('Labor & Overhead Input'!$H$5/'Materials Catalog Input'!F126),"0") -> $0.83 | H126: Knauf | I126: Fiberglass
B127: 222 | C127: 2-1/8 x 2-1/2 | D127: $3.06 | E127: $3.67 | F127: 35.0 | G127: =IF(F127>0,PRODUCT('Labor & Overhead Input'!$H$5/'Materials Catalog Input'!F127),"0") -> $0.83 | H127: Knauf | I127: Fiberglass
B128: 223 | C128: 2-1/8 x 2 | D128: $4.54 | E128: $5.44 | F128: 35.0 | G128: =IF(F128>0,PRODUCT('Labor & Overhead Input'!$H$5/'Materials Catalog Input'!F128),"0") -> $0.83 | H128: Knauf | I128: Fiberglass
B129: 224 | C129: 2-5/8 x 1/2-5/8 | D129: $1.85 | E129: $2.22 | F129: 35.0 | G129: =IF(F129>0,PRODUCT('Labor & Overhead Input'!$H$5/'Materials Catalog Input'!F129),"0") -> $0.83 | H129: Knauf | I129: Fiberglass
B130: 225 | C130: 2-5/8 x 1 | D130: $1.90 | E130: $2.28 | F130: 35.0 | G130: =IF(F130>0,PRODUCT('Labor & Overhead Input'!$H$5/'Materials Catalog Input'!F130),"0") -> $0.83 | H130: Knauf | I130: Fiberglass
B131: 226 | C131: 2-5/8 x 1-1/2-5/8 | D131: $3.36 | E131: $4.03 | F131: 35.0 | G131: =IF(F131>0,PRODUCT('Labor & Overhead Input'!$H$5/'Materials Catalog Input'!F131),"0") -> $0.83 | H131: Knauf | I131: Fiberglass
B132: 227 | C132: 2-5/8 x 2 | D132: $4.86 | E132: $5.83 | F132: 35.0 | G132: =IF(F132>0,PRODUCT('Labor & Overhead Input'!$H$5/'Materials Catalog Input'!F132),"0") -> $0.83 | H132: Knauf | I132: Fiberglass
B133: 228 | C133: 3-1/8 x 1/2 | D133: $2.08 | E133: =D133*(1+$I$3) -> $2.49 | F133: 35.0 | G133: =IF(F133>0,PRODUCT('Labor & Overhead Input'!$H$5/'Materials Catalog Input'!F133),"0") -> $0.83 | H133: Knauf | I133: Fiberglass
B134: 229 | C134: 3-1/8 x 1 | D134: $2.14 | E134: $2.56 | F134: 35.0 | G134: =IF(F134>0,PRODUCT('Labor & Overhead Input'!$H$5/'Materials Catalog Input'!F134),"0") -> $0.83 | H134: Knauf | I134: Fiberglass
B135: 230 | C135: 3-1/8 x 1-1/2 | D135: $3.46 | E135: $4.15 | F135: 35.0 | G135: =IF(F135>0,PRODUCT('Labor & Overhead Input'!$H$5/'Materials Catalog Input'!F135),"0") -> $0.83 | H135: Knauf | I135: Fiberglass
B136: 231 | C136: 3-1/8 x 2 | D136: $5.24 | E136: $6.29 | F136: 35.0 | G136: =IF(F136>0,PRODUCT('Labor & Overhead Input'!$H$5/'Materials Catalog Input'!F136),"0") -> $0.83 | H136: Knauf | I136: Fiberglass
B137: 232 | C137: 3-5/8 x 1/2 | D137: $2.08 | E137: $2.49 | F137: 35.0 | G137: =IF(F137>0,PRODUCT('Labor & Overhead Input'!$H$5/'Materials Catalog Input'!F137),"0") -> $0.83 | H137: Knauf | I137: Fiberglass
B138: 233 | C138: 3-5/8 x 1 | D138: $2.14 | E138: $2.56 | F138: 35.0 | G138: =IF(F138>0,PRODUCT('Labor & Overhead Input'!$H$5/'Materials Catalog Input'!F138),"0") -> $0.83 | H138: Knauf | I138: Fiberglass
B139: 234 | C139: 3-5/8 x 1-1/2 | D139: $3.46 | E139: $4.15 | F139: 35.0 | G139: =IF(F139>0,PRODUCT('Labor & Overhead Input'!$H$5/'Materials Catalog Input'!F139),"0") -> $0.83 | H139: Knauf | I139: Fiberglass
B140: 235 | C140: 3-5/8 x 2 | D140: $5.24 | E140: $6.29 | F140: 35.0 | G140: =IF(F140>0,PRODUCT('Labor & Overhead Input'!$H$5/'Materials Catalog Input'!F140),"0") -> $0.83 | H140: Knauf | I140: Fiberglass
B141: 236 | C141: 4-1/8 x 1/2 | D141: $2.68 | E141: $3.21 | F141: 35.0 | G141: =IF(F141>0,PRODUCT('Labor & Overhead Input'!$H$5/'Materials Catalog Input'!F141),"0") -> $0.83 | H141: Knauf | I141: Fiberglass
B142: 237 | C142: 4-1/8 x 1 | D142: $2.76 | E142: $3.31 | F142: 35.0 | G142: =IF(F142>0,PRODUCT('Labor & Overhead Input'!$H$5/'Materials Catalog Input'!F142),"0") -> $0.83 | H142: Knauf | I142: Fiberglass
B143: 238 | C143: 4-1/8 x 1-1/2 | D143: $3.96 | E143: $4.75 | F143: 35.0 | G143: =IF(F143>0,PRODUCT('Labor & Overhead Input'!$H$5/'Materials Catalog Input'!F143),"0") -> $0.83 | H143: Knauf | I143: Fiberglass
B144: 239 | C144: 4-1/8 x 2 | D144: $6.01 | E144: $7.21 | F144: 35.0 | G144: =IF(F144>0,PRODUCT('Labor & Overhead Input'!$H$5/'Materials Catalog Input'!F144),"0") -> $0.83 | H144: Knauf | I144: Fiberglass
B145: 240 | C145: 5-1/8 x 1/2 | D145: $3.08 | E145: $3.70 | F145: 35.0 | G145: =IF(F145>0,PRODUCT('Labor & Overhead Input'!$H$5/'Materials Catalog Input'!F145),"0") -> $0.83 | H145: Knauf | I145: Fiberglass
B146: 241 | C146: 5-1/8 x 1 | D146: $3.18 | E146: $3.82 | F146: 35.0 | G146: =IF(F146>0,PRODUCT('Labor & Overhead Input'!$H$5/'Materials Catalog Input'!F146),"0") -> $0.83 | H146: Knauf | I146: Fiberglass
B147: 242 | C147: 5-1/8 x 1-1/2 | D147: $4.42 | E147: $5.30 | F147: 35.0 | G147: =IF(F147>0,PRODUCT('Labor & Overhead Input'!$H$5/'Materials Catalog Input'!F147),"0") -> $0.83 | H147: Knauf | I147: Fiberglass
B148: 243 | C148: 5-1/8 x 2 | D148: $6.80 | E148: $8.16 | F148: 35.0 | G148: =IF(F148>0,PRODUCT('Labor & Overhead Input'!$H$5/'Materials Catalog Input'!F148),"0") -> $0.83 | H148: Knauf | I148: Fiberglass
B149: 244 | C149: 6-1/8 x 1/2 | D149: $3.49 | E149: $4.19 | F149: 35.0 | G149: =IF(F149>0,PRODUCT('Labor & Overhead Input'!$H$5/'Materials Catalog Input'!F149),"0") -> $0.83 | H149: Knauf | I149: Fiberglass
B150: 245 | C150: 6-1/8 x 1 | D150: $3.60 | E150: $4.32 | F150: 35.0 | G150: =IF(F150>0,PRODUCT('Labor & Overhead Input'!$H$5/'Materials Catalog Input'!F150),"0") -> $0.83 | H150: Knauf | I150: Fiberglass
B151: 246 | C151: 6-1/8 x 1-1/2 | D151: $4.85 | E151: $5.82 | F151: 35.0 | G151: =IF(F151>0,PRODUCT('Labor & Overhead Input'!$H$5/'Materials Catalog Input'!F151),"0") -> $0.83 | H151: Knauf | I151: Fiberglass
B152: 247 | C152: 6-1/8 x 2 | D152: $7.43 | E152: $8.91 | F152: 35.0 | G152: =IF(F152>0,PRODUCT('Labor & Overhead Input'!$H$5/'Materials Catalog Input'!F152),"0") -> $0.83 | H152: Knauf | I152: Fiberglass
B153: 248 | C153: 7-1/8 x 1/2 | D153: $4.30 | E153: $5.16 | F153: 35.0 | G153: =IF(F153>0,PRODUCT('Labor & Overhead Input'!$H$5/'Materials Catalog Input'!F153),"0") -> $0.83 | H153: Knauf | I153: Fiberglass
B154: 249 | C154: 7-1/8 x 1 | D154: $4.43 | E154: $5.31 | F154: 35.0 | G154: =IF(F154>0,PRODUCT('Labor & Overhead Input'!$H$5/'Materials Catalog Input'!F154),"0") -> $0.83 | H154: Knauf | I154: Fiberglass
B155: 250 | C155: 7-1/8 x 1-1/2 | D155: $5.59 | E155: $6.71 | F155: 35.0 | G155: =IF(F155>0,PRODUCT('Labor & Overhead Input'!$H$5/'Materials Catalog Input'!F155),"0") -> $0.83 | H155: Knauf | I155: Fiberglass
B156: 251 | C156: 7-1/8 x 2 | D156: $8.52 | E156: $10.22 | F156: 35.0 | G156: =IF(F156>0,PRODUCT('Labor & Overhead Input'!$H$5/'Materials Catalog Input'!F156),"0") -> $0.83 | H156: Knauf | I156: Fiberglass
B157: 252 | C157: 8-1/8 x 1/2 | D157: $4.99 | E157: $5.99 | F157: 35.0 | G157: =IF(F157>0,PRODUCT('Labor & Overhead Input'!$H$5/'Materials Catalog Input'!F157),"0") -> $0.83 | H157: Knauf | I157: Fiberglass
B158: 253 | C158: 8-1/8 x 1 | D158: $5.15 | E158: $6.18 | F158: 35.0 | G158: =IF(F158>0,PRODUCT('Labor & Overhead Input'!$H$5/'Materials Catalog Input'!F158),"0") -> $0.83 | H158: Knauf | I158: Fiberglass
B159: 254 | C159: 8-1/8 x 1-1/2 | D159: $6.06 | E159: $7.27 | F159: 35.0 | G159: =IF(F159>0,PRODUCT('Labor & Overhead Input'!$H$5/'Materials Catalog Input'!F159),"0") -> $0.83 | H159: Knauf | I159: Fiberglass
B160: 255 | C160: 8-1/8 x 2 | D160: $9.19 | E160: $11.03 | F160: 35.0 | G160: =IF(F160>0,PRODUCT('Labor & Overhead Input'!$H$5/'Materials Catalog Input'!F160),"0") -> $0.83 | H160: Knauf | I160: Fiberglass
B161: 256 | C161: 9-1/8 x 1/2 | D161: $5.42 | E161: $6.51 | F161: 35.0 | G161: =IF(F161>0,PRODUCT('Labor & Overhead Input'!$H$5/'Materials Catalog Input'!F161),"0") -> $0.83 | H161: Knauf | I161: Fiberglass
B162: 257 | C162: 9-1/8 x 1 | D162: $5.59 | E162: $6.71 | F162: 35.0 | G162: =IF(F162>0,PRODUCT('Labor & Overhead Input'!$H$5/'Materials Catalog Input'!F162),"0") -> $0.83 | H162: Knauf | I162: Fiberglass
B163: 258 | C163: 9-1/8 x 1-1/2 | D163: $6.91 | E163: $8.29 | F163: 35.0 | G163: =IF(F163>0,PRODUCT('Labor & Overhead Input'!$H$5/'Materials Catalog Input'!F163),"0") -> $0.83 | H163: Knauf | I163: Fiberglass
B164: 259 | C164: 9-1/8 x 2 | D164: $10.14 | E164: $12.17 | F164: 35.0 | G164: =IF(F164>0,PRODUCT('Labor & Overhead Input'!$H$5/'Materials Catalog Input'!F164),"0") -> $0.83 | H164: Knauf | I164: Fiberglass
B165: 260 | C165: 10-1/8 x 1/2 | D165: $6.10 | E165: $7.32 | F165: 35.0 | G165: =IF(F165>0,PRODUCT('Labor & Overhead Input'!$H$5/'Materials Catalog Input'!F165),"0") -> $0.83 | H165: Knauf | I165: Fiberglass
B166: 261 | C166: 10-1/8 x 1 | D166: $6.28 | E166: $7.53 | F166: 35.0 | G166: =IF(F166>0,PRODUCT('Labor & Overhead Input'!$H$5/'Materials Catalog Input'!F166),"0") -> $0.83 | H166: Knauf | I166: Fiberglass
B167: 262 | C167: 10-1/8 x 1-1/2 | D167: $7.97 | E167: $9.56 | F167: 35.0 | G167: =IF(F167>0,PRODUCT('Labor & Overhead Input'!$H$5/'Materials Catalog Input'!F167),"0") -> $0.83 | H167: Knauf | I167: Fiberglass
B168: 263 | C168: 10-1/8 x 2 | D168: $11.47 | E168: $13.77 | F168: 35.0 | G168: =IF(F168>0,PRODUCT('Labor & Overhead Input'!$H$5/'Materials Catalog Input'!F168),"0") -> $0.83 | H168: Knauf | I168: Fiberglass
B169: 264 | C169: 12-1/8 x 1 | D169: $7.13 | E169: $8.55 | F169: 35.0 | G169: =IF(F169>0,PRODUCT('Labor & Overhead Input'!$H$5/'Materials Catalog Input'!F169),"0") -> $0.83 | H169: Knauf | I169: Fiberglass
B170: 265 | C170: 12-1/8 x 1-1/2 | D170: $8.69 | E170: $10.43 | F170: 35.0 | G170: =IF(F170>0,PRODUCT('Labor & Overhead Input'!$H$5/'Materials Catalog Input'!F170),"0") -> $0.83 | H170: Knauf | I170: Fiberglass
B171: 266 | C171: 12-1/8 x 2 | D171: $12.66 | E171: $15.19 | F171: 35.0 | G171: =IF(F171>0,PRODUCT('Labor & Overhead Input'!$H$5/'Materials Catalog Input'!F171),"0") -> $0.83 | H171: Knauf | I171: Fiberglass
B172: 267 | C172: 12-1/8 x 5.00 | D172: $41.34 | E172: $49.61 | F172: 35.0 | G172: =IF(F172>0,PRODUCT('Labor & Overhead Input'!$H$5/'Materials Catalog Input'!F172),"0") -> $0.83 | H172: Knauf | I172: Fiberglass
B173: 268 | C173: Duct Wrap 1-1/2" | D173: $0.20 | E173: $0.24 | F173: 50.0 | G173: =IF(F173>0,PRODUCT('Labor & Overhead Input'!$H$5/'Materials Catalog Input'!F173),"0") -> $0.58 | H173: Knauf | I173: Duct Wrap
B174: 269 | C174: Duct Wrap 2" | D174: 0.25 | E174: $0.30 | F174: 50.0 | G174: =IF(F174>0,PRODUCT('Labor & Overhead Input'!$H$5/'Materials Catalog Input'!F174),"0") -> $0.58 | H174: Knauf | I174: Duct Wrap
B175: 270 | C175: Enter New Product | D175: $0.00 | E175: $0.00 | G175: =IF(F175>0,PRODUCT('Labor & Overhead Input'!$H$5/'Materials Catalog Input'!F175),"0") -> 0 | H175: Enter Description | I175: Category
B176: 271 | C176: Enter New Product | D176: $0.00 | E176: $0.00 | G176: =IF(F176>0,PRODUCT('Labor & Overhead Input'!$H$5/'Materials Catalog Input'!F176),"0") -> 0 | H176: Enter Description | I176: Category
B177: 272 | C177: Enter New Product | D177: $0.00 | E177: $0.00 | G177: =IF(F177>0,PRODUCT('Labor & Overhead Input'!$H$5/'Materials Catalog Input'!F177),"0") -> 0 | H177: Enter Description | I177: Category
B178: 273 | C178: Enter New Product | D178: $0.00 | E178: $0.00 | G178: =IF(F178>0,PRODUCT('Labor & Overhead Input'!$H$5/'Materials Catalog Input'!F178),"0") -> 0 | H178: Enter Description | I178: Category
B179: 274 | C179: Enter New Product | D179: $0.00 | E179: $0.00 | G179: =IF(F179>0,PRODUCT('Labor & Overhead Input'!$H$5/'Materials Catalog Input'!F179),"0") -> 0 | H179: Enter Description | I179: Category
B180: 275 | C180: Enter New Product | D180: $0.00 | E180: $0.00 | G180: =IF(F180>0,PRODUCT('Labor & Overhead Input'!$H$5/'Materials Catalog Input'!F180),"0") -> 0 | H180: Enter Description | I180: Category
B181: 276 | C181: Enter New Product | D181: $0.00 | E181: $0.00 | G181: =IF(F181>0,PRODUCT('Labor & Overhead Input'!$H$5/'Materials Catalog Input'!F181),"0") -> 0 | H181: Enter Description | I181: Category
B182: 277 | C182: Enter New Product | D182: $0.00 | E182: $0.00 | G182: =IF(F182>0,PRODUCT('Labor & Overhead Input'!$H$5/'Materials Catalog Input'!F182),"0") -> 0 | H182: Enter Description | I182: Category
B183: 278 | C183: Enter New Product | D183: $0.00 | E183: $0.00 | G183: =IF(F183>0,PRODUCT('Labor & Overhead Input'!$H$5/'Materials Catalog Input'!F183),"0") -> 0 | H183: Enter Description | I183: Category
B184: 279 | C184: Enter New Product | D184: $0.00 | E184: $0.00 | G184: =IF(F184>0,PRODUCT('Labor & Overhead Input'!$H$5/'Materials Catalog Input'!F184),"0") -> 0 | H184: Enter Description | I184: Category
B185: 280 | C185: Enter New Product | D185: $0.00 | E185: $0.00 | G185: =IF(F185>0,PRODUCT('Labor & Overhead Input'!$H$5/'Materials Catalog Input'!F185),"0") -> 0 | H185: Enter Description | I185: Category
B186: 281 | C186: Enter New Product | D186: $0.00 | E186: $0.00 | G186: =IF(F186>0,PRODUCT('Labor & Overhead Input'!$H$5/'Materials Catalog Input'!F186),"0") -> 0 | H186: Enter Description | I186: Category
B187: 282 | C187: Enter New Product | D187: $0.00 | E187: $0.00 | G187: =IF(F187>0,PRODUCT('Labor & Overhead Input'!$H$5/'Materials Catalog Input'!F187),"0") -> 0 | H187: Enter Description | I187: Category
B188: 283 | C188: Enter New Product | D188: $0.00 | E188: $0.00 | G188: =IF(F188>0,PRODUCT('Labor & Overhead Input'!$H$5/'Materials Catalog Input'!F188),"0") -> 0 | H188: Enter Description | I188: Category
B189: 284 | C189: Enter New Product | D189: $0.00 | E189: $0.00 | G189: =IF(F189>0,PRODUCT('Labor & Overhead Input'!$H$5/'Materials Catalog Input'!F189),"0") -> 0 | H189: Enter Description | I189: Category
B190: 285 | C190: Enter New Product | D190: $0.00 | E190: $0.00 | G190: =IF(F190>0,PRODUCT('Labor & Overhead Input'!$H$5/'Materials Catalog Input'!F190),"0") -> 0 | H190: Enter Description | I190: Category
B191: 286 | C191: Enter New Product | D191: $0.00 | E191: $0.00 | G191: =IF(F191>0,PRODUCT('Labor & Overhead Input'!$H$5/'Materials Catalog Input'!F191),"0") -> 0 | H191: Enter Description | I191: Category
B192: 287 | C192: Enter New Product | D192: $0.00 | E192: $0.00 | G192: =IF(F192>0,PRODUCT('Labor & Overhead Input'!$H$5/'Materials Catalog Input'!F192),"0") -> 0 | H192: Enter Description | I192: Category
B193: 288 | C193: Enter New Product | D193: $0.00 | E193: $0.00 | G193: =IF(F193>0,PRODUCT('Labor & Overhead Input'!$H$5/'Materials Catalog Input'!F193),"0") -> 0 | H193: Enter Description | I193: Category
B194: 289 | C194: Enter New Product | D194: $0.00 | E194: $0.00 | G194: =IF(F194>0,PRODUCT('Labor & Overhead Input'!$H$5/'Materials Catalog Input'!F194),"0") -> 0 | H194: Enter Description | I194: Category
B195: 290 | C195: Enter New Product | D195: $0.00 | E195: $0.00 | G195: =IF(F195>0,PRODUCT('Labor & Overhead Input'!$H$5/'Materials Catalog Input'!F195),"0") -> 0 | H195: Enter Description | I195: Category
B196: 291 | C196: Enter New Product | D196: $0.00 | E196: $0.00 | G196: =IF(F196>0,PRODUCT('Labor & Overhead Input'!$H$5/'Materials Catalog Input'!F196),"0") -> 0 | H196: Enter Description | I196: Category
B197: 292 | C197: Enter New Product | D197: $0.00 | E197: =D197*(1+$I$3) -> $0.00 | G197: =IF(F197>0,PRODUCT('Labor & Overhead Input'!$H$5/'Materials Catalog Input'!F197),"0") -> 0 | H197: Enter Description | I197: Category
B198: 293 | C198: Enter New Product | D198: $0.00 | E198: $0.00 | G198: =IF(F198>0,PRODUCT('Labor & Overhead Input'!$H$5/'Materials Catalog Input'!F198),"0") -> 0 | H198: Enter Description | I198: Category
B199: 294 | C199: Enter New Product | D199: $0.00 | E199: $0.00 | G199: =IF(F199>0,PRODUCT('Labor & Overhead Input'!$H$5/'Materials Catalog Input'!F199),"0") -> 0 | H199: Enter Description | I199: Category
B200: 295 | C200: Enter New Product | D200: $0.00 | E200: $0.00 | G200: =IF(F200>0,PRODUCT('Labor & Overhead Input'!$H$5/'Materials Catalog Input'!F200),"0") -> 0 | H200: Enter Description | I200: Category
... 704 more rows
